{"text_format":"3","workbook":"xlsx","n_sheets":4,"sheets":["Quali_Feld Sport","Quali_Feld Ordonnanz","Quali_Jungschützen","Schützen-Datenbank"],"not_rendered":{"images":2,"macros":1,"defined_names":2,"comments":4},"read":"whole","date_system":"1900"}

{"sheet":"Quali_Feld Sport","index":0,"n_rows":93,"n_cols":18,"rows_kept":93,"merged":[[0,2,0,6],[0,7,0,8],[0,9,0,10],[1,0,1,8]]}
[null,null,"Quali Kantonaler Meisterschütze ",{"$nulls":4},{"$f":"TODAY()","v":"2025-04-09"},null,"Meldeschluss"]
["Aktive Feld Sport",{"$nulls":8},{"$f":"\"07.09.\"","v":"07.09."},{"$f":"Jahr","v":"2025-04-09"}]
["Quali Rang","Lizenz","Name / Vorname:","Verein:","KS 1","KS 2","OMM 1 Rd.","OMM 2 Rd.","OMM 3 Rd.","EWS-A","höchstes  OMM   Resultat","Total",null,"gesamt OMM beste 2","niedrigste OMM","gesamt KS"]
[1,null,{"$f":"IF($B4=\"\",\"\",VLOOKUP($B4,DB,'Schützen-Datenbank'!$B$1,FALSE))","v":""},{"$f":"IF($B4=\"\",\"\",VLOOKUP($B4,DB,'Schützen-Datenbank'!$F$1,FALSE))","v":""},{"$nulls":6},{"$f":"MAX(G4:I4)","v":0},{"$f":"SUM(E4+F4+J4)+N4","v":0},null,{"$f":"SUM(G4:I4)-O4","v":0},{"$f":"MIN(G4:I4)","v":0},{"$f":"(SUM(E4:F4))","v":0}]
[2,null,{"$f":"IF($B5=\"\",\"\",VLOOKUP($B5,DB,'Schützen-Datenbank'!$B$1,FALSE))","v":""},{"$f":"IF(B5=\"\",\"\",VLOOKUP(B5,DB,'Schützen-Datenbank'!$F$1,FALSE))","v":""},{"$nulls":6},0,0,null,0,0,0,null,{"$f":"C90","v":"Rangierung Feld Sport:                            "}]
[3,null,{"$f":"IF($B6=\"\",\"\",VLOOKUP($B6,DB,'Schützen-Datenbank'!$B$1,FALSE))","v":""},{"$f":"IF(B6=\"\",\"\",VLOOKUP(B6,DB,'Schützen-Datenbank'!$F$1,FALSE))","v":""},{"$nulls":6},0,0,null,0,0,0,null,{"$f":"C91","v":"a) Einzelwettschiessen Kat A              "}]
[4,null,{"$f":"IF($B7=\"\",\"\",VLOOKUP($B7,DB,'Schützen-Datenbank'!$B$1,FALSE))","v":""},{"$f":"IF(B7=\"\",\"\",VLOOKUP(B7,DB,'Schützen-Datenbank'!$F$1,FALSE))","v":""},{"$nulls":6},0,0,null,0,0,0,null,{"$f":"C92","v":"b) 2 besten Kantonalstiche                "}]
[5,null,{"$f":"IF($B8=\"\",\"\",VLOOKUP($B8,DB,'Schützen-Datenbank'!$B$1,FALSE))","v":""},{"$f":"IF(B8=\"\",\"\",VLOOKUP(B8,DB,'Schützen-Datenbank'!$F$1,FALSE))","v":""},{"$nulls":6},0,0,null,0,0,0,null,{"$f":"C93","v":"c) das Total der 2 besten Runden OMM (1. bis 3. Runde) "}]
[6,null,{"$f":"IF($B9=\"\",\"\",VLOOKUP($B9,DB,'Schützen-Datenbank'!$B$1,FALSE))","v":""},{"$f":"IF(B9=\"\",\"\",VLOOKUP(B9,DB,'Schützen-Datenbank'!$F$1,FALSE))","v":""},{"$nulls":6},0,0,null,0,0,0]
[7,null,{"$f":"IF($B10=\"\",\"\",VLOOKUP($B10,DB,'Schützen-Datenbank'!$B$1,FALSE))","v":""},{"$f":"IF(B10=\"\",\"\",VLOOKUP(B10,DB,'Schützen-Datenbank'!$F$1,FALSE))","v":""},{"$nulls":6},0,0,null,0,0,0]
[8,null,{"$f":"IF($B11=\"\",\"\",VLOOKUP($B11,DB,'Schützen-Datenbank'!$B$1,FALSE))","v":""},{"$f":"IF(B11=\"\",\"\",VLOOKUP(B11,DB,'Schützen-Datenbank'!$F$1,FALSE))","v":""},{"$nulls":6},0,0,null,0,0,0]
[9,null,{"$f":"IF($B12=\"\",\"\",VLOOKUP($B12,DB,'Schützen-Datenbank'!$B$1,FALSE))","v":""},{"$f":"IF(B12=\"\",\"\",VLOOKUP(B12,DB,'Schützen-Datenbank'!$F$1,FALSE))","v":""},{"$nulls":6},0,0,null,0,0,0]
[10,null,{"$f":"IF($B13=\"\",\"\",VLOOKUP($B13,DB,'Schützen-Datenbank'!$B$1,FALSE))","v":""},{"$f":"IF(B13=\"\",\"\",VLOOKUP(B13,DB,'Schützen-Datenbank'!$F$1,FALSE))","v":""},{"$nulls":6},0,0,null,0,0,0]
[11,null,{"$f":"IF($B14=\"\",\"\",VLOOKUP($B14,DB,'Schützen-Datenbank'!$B$1,FALSE))","v":""},{"$f":"IF(B14=\"\",\"\",VLOOKUP(B14,DB,'Schützen-Datenbank'!$F$1,FALSE))","v":""},{"$nulls":6},0,0,null,0,0,0]
[12,null,{"$f":"IF($B15=\"\",\"\",VLOOKUP($B15,DB,'Schützen-Datenbank'!$B$1,FALSE))","v":""},{"$f":"IF(B15=\"\",\"\",VLOOKUP(B15,DB,'Schützen-Datenbank'!$F$1,FALSE))","v":""},{"$nulls":6},0,0,null,0,0,0]
[13,null,{"$f":"IF($B16=\"\",\"\",VLOOKUP($B16,DB,'Schützen-Datenbank'!$B$1,FALSE))","v":""},{"$f":"IF(B16=\"\",\"\",VLOOKUP(B16,DB,'Schützen-Datenbank'!$F$1,FALSE))","v":""},{"$nulls":6},0,0,null,0,0,0]
[14,null,{"$f":"IF($B17=\"\",\"\",VLOOKUP($B17,DB,'Schützen-Datenbank'!$B$1,FALSE))","v":""},{"$f":"IF(B17=\"\",\"\",VLOOKUP(B17,DB,'Schützen-Datenbank'!$F$1,FALSE))","v":""},{"$nulls":6},0,0,null,0,0,0]
[15,null,{"$f":"IF($B18=\"\",\"\",VLOOKUP($B18,DB,'Schützen-Datenbank'!$B$1,FALSE))","v":""},{"$f":"IF(B18=\"\",\"\",VLOOKUP(B18,DB,'Schützen-Datenbank'!$F$1,FALSE))","v":""},{"$nulls":6},0,0,null,0,0,0]
[16,null,{"$f":"IF($B19=\"\",\"\",VLOOKUP($B19,DB,'Schützen-Datenbank'!$B$1,FALSE))","v":""},{"$f":"IF(B19=\"\",\"\",VLOOKUP(B19,DB,'Schützen-Datenbank'!$F$1,FALSE))","v":""},{"$nulls":6},0,0,null,0,0,0]
["17 (1. Ersatz)",null,{"$f":"IF($B20=\"\",\"\",VLOOKUP($B20,DB,'Schützen-Datenbank'!$B$1,FALSE))","v":""},{"$f":"IF(B20=\"\",\"\",VLOOKUP(B20,DB,'Schützen-Datenbank'!$F$1,FALSE))","v":""},{"$nulls":6},0,0,null,0,0,0]
["18 (2. Ersatz)",null,{"$f":"IF($B21=\"\",\"\",VLOOKUP($B21,DB,'Schützen-Datenbank'!$B$1,FALSE))","v":""},{"$f":"IF(B21=\"\",\"\",VLOOKUP(B21,DB,'Schützen-Datenbank'!$F$1,FALSE))","v":""},{"$nulls":6},0,0,null,0,0,0]
["19 (3. Ersatz)",null,{"$f":"IF($B22=\"\",\"\",VLOOKUP($B22,DB,'Schützen-Datenbank'!$B$1,FALSE))","v":""},{"$f":"IF(B22=\"\",\"\",VLOOKUP(B22,DB,'Schützen-Datenbank'!$F$1,FALSE))","v":""},{"$nulls":6},0,0,null,0,0,0]
[20,null,{"$f":"IF($B23=\"\",\"\",VLOOKUP($B23,DB,'Schützen-Datenbank'!$B$1,FALSE))","v":""},{"$f":"IF(B23=\"\",\"\",VLOOKUP(B23,DB,'Schützen-Datenbank'!$F$1,FALSE))","v":""},{"$nulls":6},0,0,null,0,0,0]
[21,null,{"$f":"IF($B24=\"\",\"\",VLOOKUP($B24,DB,'Schützen-Datenbank'!$B$1,FALSE))","v":""},{"$f":"IF(B24=\"\",\"\",VLOOKUP(B24,DB,'Schützen-Datenbank'!$F$1,FALSE))","v":""},{"$nulls":6},0,0,null,0,0,0]
[22,null,{"$f":"IF($B25=\"\",\"\",VLOOKUP($B25,DB,'Schützen-Datenbank'!$B$1,FALSE))","v":""},{"$f":"IF(B25=\"\",\"\",VLOOKUP(B25,DB,'Schützen-Datenbank'!$F$1,FALSE))","v":""},{"$nulls":6},0,0,null,0,0,0]
[23,null,{"$f":"IF($B26=\"\",\"\",VLOOKUP($B26,DB,'Schützen-Datenbank'!$B$1,FALSE))","v":""},{"$f":"IF(B26=\"\",\"\",VLOOKUP(B26,DB,'Schützen-Datenbank'!$F$1,FALSE))","v":""},{"$nulls":6},0,0,null,0,0,0]
[24,null,{"$f":"IF($B27=\"\",\"\",VLOOKUP($B27,DB,'Schützen-Datenbank'!$B$1,FALSE))","v":""},{"$f":"IF(B27=\"\",\"\",VLOOKUP(B27,DB,'Schützen-Datenbank'!$F$1,FALSE))","v":""},{"$nulls":6},0,0,null,0,0,0]
[25,null,{"$f":"IF($B28=\"\",\"\",VLOOKUP($B28,DB,'Schützen-Datenbank'!$B$1,FALSE))","v":""},{"$f":"IF(B28=\"\",\"\",VLOOKUP(B28,DB,'Schützen-Datenbank'!$F$1,FALSE))","v":""},{"$nulls":6},0,0,null,0,0,0]
[26,null,{"$f":"IF($B29=\"\",\"\",VLOOKUP($B29,DB,'Schützen-Datenbank'!$B$1,FALSE))","v":""},{"$f":"IF(B29=\"\",\"\",VLOOKUP(B29,DB,'Schützen-Datenbank'!$F$1,FALSE))","v":""},{"$nulls":6},0,0,null,0,0,0]
[27,null,{"$f":"IF($B30=\"\",\"\",VLOOKUP($B30,DB,'Schützen-Datenbank'!$B$1,FALSE))","v":""},{"$f":"IF(B30=\"\",\"\",VLOOKUP(B30,DB,'Schützen-Datenbank'!$F$1,FALSE))","v":""},{"$nulls":6},0,0,null,0,0,0]
[28,null,{"$f":"IF($B31=\"\",\"\",VLOOKUP($B31,DB,'Schützen-Datenbank'!$B$1,FALSE))","v":""},{"$f":"IF(B31=\"\",\"\",VLOOKUP(B31,DB,'Schützen-Datenbank'!$F$1,FALSE))","v":""},{"$nulls":6},0,0,null,0,0,0]
[29,null,{"$f":"IF($B32=\"\",\"\",VLOOKUP($B32,DB,'Schützen-Datenbank'!$B$1,FALSE))","v":""},{"$f":"IF(B32=\"\",\"\",VLOOKUP(B32,DB,'Schützen-Datenbank'!$F$1,FALSE))","v":""},{"$nulls":6},0,0,null,0,0,0]
[30,null,{"$f":"IF($B33=\"\",\"\",VLOOKUP($B33,DB,'Schützen-Datenbank'!$B$1,FALSE))","v":""},{"$f":"IF(B33=\"\",\"\",VLOOKUP(B33,DB,'Schützen-Datenbank'!$F$1,FALSE))","v":""},{"$nulls":6},0,0,null,0,0,0]
[31,null,{"$f":"IF($B34=\"\",\"\",VLOOKUP($B34,DB,'Schützen-Datenbank'!$B$1,FALSE))","v":""},{"$f":"IF(B34=\"\",\"\",VLOOKUP(B34,DB,'Schützen-Datenbank'!$F$1,FALSE))","v":""},{"$nulls":6},0,0,null,0,0,0]
[32,null,{"$f":"IF($B35=\"\",\"\",VLOOKUP($B35,DB,'Schützen-Datenbank'!$B$1,FALSE))","v":""},{"$f":"IF(B35=\"\",\"\",VLOOKUP(B35,DB,'Schützen-Datenbank'!$F$1,FALSE))","v":""},{"$nulls":6},0,0,null,0,0,0]
[33,null,{"$f":"IF($B36=\"\",\"\",VLOOKUP($B36,DB,'Schützen-Datenbank'!$B$1,FALSE))","v":""},{"$f":"IF(B36=\"\",\"\",VLOOKUP(B36,DB,'Schützen-Datenbank'!$F$1,FALSE))","v":""},{"$nulls":6},{"$f":"MAX(G36:I36)","v":0},{"$f":"SUM(E36+F36+J36)+N36","v":0},null,{"$f":"SUM(G36:I36)-O36","v":0},{"$f":"MIN(G36:I36)","v":0},{"$f":"(SUM(E36:F36))","v":0}]
[34,null,{"$f":"IF($B37=\"\",\"\",VLOOKUP($B37,DB,'Schützen-Datenbank'!$B$1,FALSE))","v":""},{"$f":"IF(B37=\"\",\"\",VLOOKUP(B37,DB,'Schützen-Datenbank'!$F$1,FALSE))","v":""},{"$nulls":6},0,0,null,0,0,0]
[35,null,{"$f":"IF($B38=\"\",\"\",VLOOKUP($B38,DB,'Schützen-Datenbank'!$B$1,FALSE))","v":""},{"$f":"IF(B38=\"\",\"\",VLOOKUP(B38,DB,'Schützen-Datenbank'!$F$1,FALSE))","v":""},{"$nulls":6},0,0,null,0,0,0]
[36,null,{"$f":"IF($B39=\"\",\"\",VLOOKUP($B39,DB,'Schützen-Datenbank'!$B$1,FALSE))","v":""},{"$f":"IF(B39=\"\",\"\",VLOOKUP(B39,DB,'Schützen-Datenbank'!$F$1,FALSE))","v":""},{"$nulls":6},0,0,null,0,0,0]
[37,null,{"$f":"IF($B40=\"\",\"\",VLOOKUP($B40,DB,'Schützen-Datenbank'!$B$1,FALSE))","v":""},{"$f":"IF($B40=\"\",\"\",VLOOKUP($B40,DB,'Schützen-Datenbank'!$F$1,FALSE))","v":""},{"$nulls":6},0,0,null,0,0,0]
[38,null,{"$f":"IF($B41=\"\",\"\",VLOOKUP($B41,DB,'Schützen-Datenbank'!$B$1,FALSE))","v":""},{"$f":"IF($B41=\"\",\"\",VLOOKUP($B41,DB,'Schützen-Datenbank'!$F$1,FALSE))","v":""},{"$nulls":6},0,0,null,0,0,0]
[39,null,{"$f":"IF($B42=\"\",\"\",VLOOKUP($B42,DB,'Schützen-Datenbank'!$B$1,FALSE))","v":""},{"$f":"IF($B42=\"\",\"\",VLOOKUP($B42,DB,'Schützen-Datenbank'!$F$1,FALSE))","v":""},{"$nulls":6},0,0,null,0,0,0]
[40,null,{"$f":"IF($B43=\"\",\"\",VLOOKUP($B43,DB,'Schützen-Datenbank'!$B$1,FALSE))","v":""},{"$f":"IF($B43=\"\",\"\",VLOOKUP($B43,DB,'Schützen-Datenbank'!$F$1,FALSE))","v":""},{"$nulls":6},0,0,null,0,0,0]
[41,null,{"$f":"IF($B44=\"\",\"\",VLOOKUP($B44,DB,'Schützen-Datenbank'!$B$1,FALSE))","v":""},{"$f":"IF($B44=\"\",\"\",VLOOKUP($B44,DB,'Schützen-Datenbank'!$F$1,FALSE))","v":""},{"$nulls":6},0,0,null,0,0,0]
[42,null,{"$f":"IF($B45=\"\",\"\",VLOOKUP($B45,DB,'Schützen-Datenbank'!$B$1,FALSE))","v":""},{"$f":"IF($B45=\"\",\"\",VLOOKUP($B45,DB,'Schützen-Datenbank'!$F$1,FALSE))","v":""},{"$nulls":6},0,0,null,0,0,0]
[43,null,{"$f":"IF($B46=\"\",\"\",VLOOKUP($B46,DB,'Schützen-Datenbank'!$B$1,FALSE))","v":""},{"$f":"IF($B46=\"\",\"\",VLOOKUP($B46,DB,'Schützen-Datenbank'!$F$1,FALSE))","v":""},{"$nulls":6},0,0,null,0,0,0]
[44,null,{"$f":"IF($B47=\"\",\"\",VLOOKUP($B47,DB,'Schützen-Datenbank'!$B$1,FALSE))","v":""},{"$f":"IF($B47=\"\",\"\",VLOOKUP($B47,DB,'Schützen-Datenbank'!$F$1,FALSE))","v":""},{"$nulls":6},0,0,null,0,0,0]
[45,null,{"$f":"IF($B48=\"\",\"\",VLOOKUP($B48,DB,'Schützen-Datenbank'!$B$1,FALSE))","v":""},{"$f":"IF($B48=\"\",\"\",VLOOKUP($B48,DB,'Schützen-Datenbank'!$F$1,FALSE))","v":""},{"$nulls":6},0,0,null,0,0,0]
[46,null,{"$f":"IF($B49=\"\",\"\",VLOOKUP($B49,DB,'Schützen-Datenbank'!$B$1,FALSE))","v":""},{"$f":"IF($B49=\"\",\"\",VLOOKUP($B49,DB,'Schützen-Datenbank'!$F$1,FALSE))","v":""},{"$nulls":6},0,0,null,0,0,0]
[47,null,{"$f":"IF($B50=\"\",\"\",VLOOKUP($B50,DB,'Schützen-Datenbank'!$B$1,FALSE))","v":""},{"$f":"IF(B50=\"\",\"\",VLOOKUP(B50,DB,'Schützen-Datenbank'!$F$1,FALSE))","v":""},{"$nulls":6},0,0,null,0,0,0]
[48,null,{"$f":"IF($B51=\"\",\"\",VLOOKUP($B51,DB,'Schützen-Datenbank'!$B$1,FALSE))","v":""},{"$f":"IF(B51=\"\",\"\",VLOOKUP(B51,DB,'Schützen-Datenbank'!$F$1,FALSE))","v":""},{"$nulls":6},0,0,null,0,0,0]
[49,null,{"$f":"IF($B52=\"\",\"\",VLOOKUP($B52,DB,'Schützen-Datenbank'!$B$1,FALSE))","v":""},{"$f":"IF(B52=\"\",\"\",VLOOKUP(B52,DB,'Schützen-Datenbank'!$F$1,FALSE))","v":""},{"$nulls":6},0,0,null,0,0,0]
[50,null,{"$f":"IF($B53=\"\",\"\",VLOOKUP($B53,DB,'Schützen-Datenbank'!$B$1,FALSE))","v":""},{"$f":"IF(B53=\"\",\"\",VLOOKUP(B53,DB,'Schützen-Datenbank'!$F$1,FALSE))","v":""},{"$nulls":6},0,0,null,0,0,0]
[51,null,{"$f":"IF($B54=\"\",\"\",VLOOKUP($B54,DB,'Schützen-Datenbank'!$B$1,FALSE))","v":""},{"$f":"IF(B54=\"\",\"\",VLOOKUP(B54,DB,'Schützen-Datenbank'!$F$1,FALSE))","v":""},{"$nulls":6},0,0,null,0,0,0]
[52,null,{"$f":"IF($B55=\"\",\"\",VLOOKUP($B55,DB,'Schützen-Datenbank'!$B$1,FALSE))","v":""},{"$f":"IF(B55=\"\",\"\",VLOOKUP(B55,DB,'Schützen-Datenbank'!$F$1,FALSE))","v":""},{"$nulls":6},0,0,null,0,0,0]
[53,null,{"$f":"IF($B56=\"\",\"\",VLOOKUP($B56,DB,'Schützen-Datenbank'!$B$1,FALSE))","v":""},{"$f":"IF(B56=\"\",\"\",VLOOKUP(B56,DB,'Schützen-Datenbank'!$F$1,FALSE))","v":""},{"$nulls":6},0,0,null,0,0,0]
[54,null,{"$f":"IF($B57=\"\",\"\",VLOOKUP($B57,DB,'Schützen-Datenbank'!$B$1,FALSE))","v":""},{"$f":"IF(B57=\"\",\"\",VLOOKUP(B57,DB,'Schützen-Datenbank'!$F$1,FALSE))","v":""},{"$nulls":6},0,0,null,0,0,0]
[55,null,{"$f":"IF($B58=\"\",\"\",VLOOKUP($B58,DB,'Schützen-Datenbank'!$B$1,FALSE))","v":""},{"$f":"IF(B58=\"\",\"\",VLOOKUP(B58,DB,'Schützen-Datenbank'!$F$1,FALSE))","v":""},{"$nulls":6},0,0,null,0,0,0]
[56,null,{"$f":"IF($B59=\"\",\"\",VLOOKUP($B59,DB,'Schützen-Datenbank'!$B$1,FALSE))","v":""},{"$f":"IF(B59=\"\",\"\",VLOOKUP(B59,DB,'Schützen-Datenbank'!$F$1,FALSE))","v":""},{"$nulls":6},0,0,null,0,0,0]
[57,null,{"$f":"IF($B60=\"\",\"\",VLOOKUP($B60,DB,'Schützen-Datenbank'!$B$1,FALSE))","v":""},{"$f":"IF(B60=\"\",\"\",VLOOKUP(B60,DB,'Schützen-Datenbank'!$F$1,FALSE))","v":""},{"$nulls":6},0,0,null,0,0,0]
[58,null,{"$f":"IF($B61=\"\",\"\",VLOOKUP($B61,DB,'Schützen-Datenbank'!$B$1,FALSE))","v":""},{"$f":"IF(B61=\"\",\"\",VLOOKUP(B61,DB,'Schützen-Datenbank'!$F$1,FALSE))","v":""},{"$nulls":6},0,0,null,0,0,0]
[59,null,{"$f":"IF($B62=\"\",\"\",VLOOKUP($B62,DB,'Schützen-Datenbank'!$B$1,FALSE))","v":""},{"$f":"IF(B62=\"\",\"\",VLOOKUP(B62,DB,'Schützen-Datenbank'!$F$1,FALSE))","v":""},{"$nulls":6},0,0,null,0,0,0]
[60,null,{"$f":"IF($B63=\"\",\"\",VLOOKUP($B63,DB,'Schützen-Datenbank'!$B$1,FALSE))","v":""},{"$f":"IF(B63=\"\",\"\",VLOOKUP(B63,DB,'Schützen-Datenbank'!$F$1,FALSE))","v":""},{"$nulls":6},0,0,null,0,0,0]
[61,null,{"$f":"IF($B64=\"\",\"\",VLOOKUP($B64,DB,'Schützen-Datenbank'!$B$1,FALSE))","v":""},{"$f":"IF(B64=\"\",\"\",VLOOKUP(B64,DB,'Schützen-Datenbank'!$F$1,FALSE))","v":""},{"$nulls":6},0,0,null,0,0,0]
[62,null,{"$f":"IF($B65=\"\",\"\",VLOOKUP($B65,DB,'Schützen-Datenbank'!$B$1,FALSE))","v":""},{"$f":"IF(B65=\"\",\"\",VLOOKUP(B65,DB,'Schützen-Datenbank'!$F$1,FALSE))","v":""},{"$nulls":6},0,0,null,0,0,0]
[63,null,{"$f":"IF($B66=\"\",\"\",VLOOKUP($B66,DB,'Schützen-Datenbank'!$B$1,FALSE))","v":""},{"$f":"IF(B66=\"\",\"\",VLOOKUP(B66,DB,'Schützen-Datenbank'!$F$1,FALSE))","v":""},{"$nulls":6},0,0,null,0,0,0]
[64,null,{"$f":"IF($B67=\"\",\"\",VLOOKUP($B67,DB,'Schützen-Datenbank'!$B$1,FALSE))","v":""},{"$f":"IF(B67=\"\",\"\",VLOOKUP(B67,DB,'Schützen-Datenbank'!$F$1,FALSE))","v":""},{"$nulls":6},0,0,null,0,0,0]
[65,null,{"$f":"IF($B68=\"\",\"\",VLOOKUP($B68,DB,'Schützen-Datenbank'!$B$1,FALSE))","v":""},{"$f":"IF(B68=\"\",\"\",VLOOKUP(B68,DB,'Schützen-Datenbank'!$F$1,FALSE))","v":""},{"$nulls":6},{"$f":"MAX(G68:I68)","v":0},{"$f":"SUM(E68+F68+J68)+N68","v":0},null,{"$f":"SUM(G68:I68)-O68","v":0},{"$f":"MIN(G68:I68)","v":0},{"$f":"(SUM(E68:F68))","v":0}]
[66,null,{"$f":"IF($B69=\"\",\"\",VLOOKUP($B69,DB,'Schützen-Datenbank'!$B$1,FALSE))","v":""},{"$f":"IF(B69=\"\",\"\",VLOOKUP(B69,DB,'Schützen-Datenbank'!$F$1,FALSE))","v":""},{"$nulls":6},0,0,null,0,0,0]
[67,null,{"$f":"IF($B70=\"\",\"\",VLOOKUP($B70,DB,'Schützen-Datenbank'!$B$1,FALSE))","v":""},{"$f":"IF(B70=\"\",\"\",VLOOKUP(B70,DB,'Schützen-Datenbank'!$F$1,FALSE))","v":""},{"$nulls":6},0,0,null,0,0,0]
[68,null,{"$f":"IF($B71=\"\",\"\",VLOOKUP($B71,DB,'Schützen-Datenbank'!$B$1,FALSE))","v":""},{"$f":"IF(B71=\"\",\"\",VLOOKUP(B71,DB,'Schützen-Datenbank'!$F$1,FALSE))","v":""},{"$nulls":6},0,0,null,0,0,0]
[69,null,{"$f":"IF($B72=\"\",\"\",VLOOKUP($B72,DB,'Schützen-Datenbank'!$B$1,FALSE))","v":""},{"$f":"IF(B72=\"\",\"\",VLOOKUP(B72,DB,'Schützen-Datenbank'!$F$1,FALSE))","v":""},{"$nulls":6},0,0,null,0,0,0]
[70,null,{"$f":"IF($B73=\"\",\"\",VLOOKUP($B73,DB,'Schützen-Datenbank'!$B$1,FALSE))","v":""},{"$f":"IF(B73=\"\",\"\",VLOOKUP(B73,DB,'Schützen-Datenbank'!$F$1,FALSE))","v":""},{"$nulls":6},0,0,null,0,0,0]
[71,null,{"$f":"IF($B74=\"\",\"\",VLOOKUP($B74,DB,'Schützen-Datenbank'!$B$1,FALSE))","v":""},{"$f":"IF(B74=\"\",\"\",VLOOKUP(B74,DB,'Schützen-Datenbank'!$F$1,FALSE))","v":""},{"$nulls":6},0,0,null,0,0,0]
[72,null,{"$f":"IF($B75=\"\",\"\",VLOOKUP($B75,DB,'Schützen-Datenbank'!$B$1,FALSE))","v":""},{"$f":"IF(B75=\"\",\"\",VLOOKUP(B75,DB,'Schützen-Datenbank'!$F$1,FALSE))","v":""},{"$nulls":6},0,0,null,0,0,0]
[73,null,{"$f":"IF($B76=\"\",\"\",VLOOKUP($B76,DB,'Schützen-Datenbank'!$B$1,FALSE))","v":""},{"$f":"IF(B76=\"\",\"\",VLOOKUP(B76,DB,'Schützen-Datenbank'!$F$1,FALSE))","v":""},{"$nulls":6},0,0,null,0,0,0]
[74,null,{"$f":"IF($B77=\"\",\"\",VLOOKUP($B77,DB,'Schützen-Datenbank'!$B$1,FALSE))","v":""},{"$f":"IF(B77=\"\",\"\",VLOOKUP(B77,DB,'Schützen-Datenbank'!$F$1,FALSE))","v":""},{"$nulls":6},0,0,null,0,0,0]
[75,null,{"$f":"IF($B78=\"\",\"\",VLOOKUP($B78,DB,'Schützen-Datenbank'!$B$1,FALSE))","v":""},{"$f":"IF(B78=\"\",\"\",VLOOKUP(B78,DB,'Schützen-Datenbank'!$F$1,FALSE))","v":""},{"$nulls":6},0,0,null,0,0,0]
[76,null,{"$f":"IF($B79=\"\",\"\",VLOOKUP($B79,DB,'Schützen-Datenbank'!$B$1,FALSE))","v":""},{"$f":"IF(B79=\"\",\"\",VLOOKUP(B79,DB,'Schützen-Datenbank'!$F$1,FALSE))","v":""},{"$nulls":6},0,0,null,0,0,0]
[77,null,{"$f":"IF($B80=\"\",\"\",VLOOKUP($B80,DB,'Schützen-Datenbank'!$B$1,FALSE))","v":""},{"$f":"IF(B80=\"\",\"\",VLOOKUP(B80,DB,'Schützen-Datenbank'!$F$1,FALSE))","v":""},{"$nulls":6},0,0,null,0,0,0]
[78,null,{"$f":"IF($B81=\"\",\"\",VLOOKUP($B81,DB,'Schützen-Datenbank'!$B$1,FALSE))","v":""},{"$f":"IF(B81=\"\",\"\",VLOOKUP(B81,DB,'Schützen-Datenbank'!$F$1,FALSE))","v":""},{"$nulls":6},0,0,null,0,0,0]
[79,null,{"$f":"IF($B82=\"\",\"\",VLOOKUP($B82,DB,'Schützen-Datenbank'!$B$1,FALSE))","v":""},{"$f":"IF(B82=\"\",\"\",VLOOKUP(B82,DB,'Schützen-Datenbank'!$F$1,FALSE))","v":""},{"$nulls":6},0,0,null,0,0,0]
[80,null,{"$f":"IF($B83=\"\",\"\",VLOOKUP($B83,DB,'Schützen-Datenbank'!$B$1,FALSE))","v":""},{"$f":"IF(B83=\"\",\"\",VLOOKUP(B83,DB,'Schützen-Datenbank'!$F$1,FALSE))","v":""},{"$nulls":6},0,0,null,0,0,0]
[81,null,{"$f":"IF($B84=\"\",\"\",VLOOKUP($B84,DB,'Schützen-Datenbank'!$B$1,FALSE))","v":""},{"$f":"IF(B84=\"\",\"\",VLOOKUP(B84,DB,'Schützen-Datenbank'!$F$1,FALSE))","v":""},{"$nulls":6},0,0,null,0,0,0]
[82,null,{"$f":"IF($B85=\"\",\"\",VLOOKUP($B85,DB,'Schützen-Datenbank'!$B$1,FALSE))","v":""},{"$f":"IF(B85=\"\",\"\",VLOOKUP(B85,DB,'Schützen-Datenbank'!$F$1,FALSE))","v":""},{"$nulls":6},0,0,null,0,0,0]
[83,null,{"$f":"IF($B86=\"\",\"\",VLOOKUP($B86,DB,'Schützen-Datenbank'!$B$1,FALSE))","v":""},{"$f":"IF(B86=\"\",\"\",VLOOKUP(B86,DB,'Schützen-Datenbank'!$F$1,FALSE))","v":""},{"$nulls":6},0,0,null,0,0,0]
[84,null,{"$f":"IF($B87=\"\",\"\",VLOOKUP($B87,DB,'Schützen-Datenbank'!$B$1,FALSE))","v":""},{"$f":"IF(B87=\"\",\"\",VLOOKUP(B87,DB,'Schützen-Datenbank'!$F$1,FALSE))","v":""},{"$nulls":6},0,0,null,0,0,0]
[]
[]
[null,null,"Rangierung Feld Sport:                            "]
[null,null,"a) Einzelwettschiessen Kat A              "]
[null,null,"b) 2 besten Kantonalstiche                "]
[null,null,"c) das Total der 2 besten Runden OMM (1. bis 3. Runde) "]

{"sheet":"Quali_Feld Ordonnanz","index":1,"n_rows":104,"n_cols":14,"rows_kept":104,"merged":[[0,5,0,6]]}
[null,null,"Quali Kantonaler Meisterschütze ",null,null,{"$f":"TODAY()","v":"2025-04-09"},null,"Meldeschluss"]
[null,null,"                        Aktive Feld Ordonnanz",{"$nulls":4},{"$f":"'Quali_Feld Sport'!J2","v":"07.09."},{"$f":"Jahr","v":"2025-04-09"}]
["Quali Rang","Lizenz","Name / Vorname:","Verein:","KS 1","KS 2","BS","FS","EWS-D od. E","Total",null,"Höchster-KS"]
[1,null,{"$f":"IF($B4=\"\",\"\",VLOOKUP($B4,DB,'Schützen-Datenbank'!$B$1,FALSE))","v":""},{"$f":"IF($B4=\"\",\"\",VLOOKUP($B4,DB,'Schützen-Datenbank'!$F$1,FALSE))","v":""},{"$nulls":5},{"$f":"SUM(E4:I4)","v":0},null,{"$f":"SUM(E4:F4)","v":0}]
[2,null,{"$f":"IF(B5=\"\",\"\",VLOOKUP(B5,'Schützen-Datenbank'!$B$3:$C$1679,2,FALSE))","v":""},{"$f":"IF(B5=\"\",\"\",VLOOKUP(B5,DB,'Schützen-Datenbank'!$F$1,FALSE))","v":""},{"$nulls":5},0,null,0,null,{"$f":"C100","v":"Rangierung Feld Ordonnanz:"}]
[3,null,{"$f":"IF(B6=\"\",\"\",VLOOKUP(B6,'Schützen-Datenbank'!$B$3:$C$1679,2,FALSE))","v":""},{"$f":"IF(B6=\"\",\"\",VLOOKUP(B6,DB,'Schützen-Datenbank'!$F$1,FALSE))","v":""},{"$nulls":5},0,null,0,null,"a) Einzelwettschiessen Kat D oder E"]
[4,null,{"$f":"IF(B7=\"\",\"\",VLOOKUP(B7,'Schützen-Datenbank'!$B$3:$C$1679,2,FALSE))","v":""},{"$f":"IF(B7=\"\",\"\",VLOOKUP(B7,DB,'Schützen-Datenbank'!$F$1,FALSE))","v":""},{"$nulls":5},0,null,0,null,"b) das total der 2 besten Kantonalstiche Kat. D oder E"]
[5,null,{"$f":"IF(B8=\"\",\"\",VLOOKUP(B8,'Schützen-Datenbank'!$B$3:$C$1679,2,FALSE))","v":""},{"$f":"IF(B8=\"\",\"\",VLOOKUP(B8,DB,'Schützen-Datenbank'!$F$1,FALSE))","v":""},{"$nulls":5},0,null,0,null,"c) Bundesprogramm"]
[6,null,{"$f":"IF(B9=\"\",\"\",VLOOKUP(B9,'Schützen-Datenbank'!$B$3:$C$1679,2,FALSE))","v":""},{"$f":"IF(B9=\"\",\"\",VLOOKUP(B9,DB,'Schützen-Datenbank'!$F$1,FALSE))","v":""},{"$nulls":5},0,null,0,null,"d) Feldschiessen"]
[7,null,{"$f":"IF(B10=\"\",\"\",VLOOKUP(B10,'Schützen-Datenbank'!$B$3:$C$1679,2,FALSE))","v":""},{"$f":"IF(B10=\"\",\"\",VLOOKUP(B10,DB,'Schützen-Datenbank'!$F$1,FALSE))","v":""},{"$nulls":5},0,null,0]
[8,null,{"$f":"IF(B11=\"\",\"\",VLOOKUP(B11,'Schützen-Datenbank'!$B$3:$C$1679,2,FALSE))","v":""},{"$f":"IF(B11=\"\",\"\",VLOOKUP(B11,DB,'Schützen-Datenbank'!$F$1,FALSE))","v":""},{"$nulls":5},0,null,0]
[9,null,{"$f":"IF(B12=\"\",\"\",VLOOKUP(B12,'Schützen-Datenbank'!$B$3:$C$1679,2,FALSE))","v":""},{"$f":"IF(B12=\"\",\"\",VLOOKUP(B12,DB,'Schützen-Datenbank'!$F$1,FALSE))","v":""},{"$nulls":5},0,null,0]
[10,null,{"$f":"IF(B13=\"\",\"\",VLOOKUP(B13,'Schützen-Datenbank'!$B$3:$C$1679,2,FALSE))","v":""},{"$f":"IF(B13=\"\",\"\",VLOOKUP(B13,DB,'Schützen-Datenbank'!$F$1,FALSE))","v":""},{"$nulls":5},0,null,0]
[11,null,{"$f":"IF(B14=\"\",\"\",VLOOKUP(B14,'Schützen-Datenbank'!$B$3:$C$1679,2,FALSE))","v":""},{"$f":"IF(B14=\"\",\"\",VLOOKUP(B14,DB,'Schützen-Datenbank'!$F$1,FALSE))","v":""},{"$nulls":5},0,null,0]
[12,null,{"$f":"IF(B15=\"\",\"\",VLOOKUP(B15,'Schützen-Datenbank'!$B$3:$C$1679,2,FALSE))","v":""},{"$f":"IF(B15=\"\",\"\",VLOOKUP(B15,DB,'Schützen-Datenbank'!$F$1,FALSE))","v":""},{"$nulls":5},0,null,0]
[13,null,{"$f":"IF(B16=\"\",\"\",VLOOKUP(B16,'Schützen-Datenbank'!$B$3:$C$1679,2,FALSE))","v":""},{"$f":"IF(B16=\"\",\"\",VLOOKUP(B16,DB,'Schützen-Datenbank'!$F$1,FALSE))","v":""},{"$nulls":5},0,null,0]
[14,null,{"$f":"IF(B17=\"\",\"\",VLOOKUP(B17,'Schützen-Datenbank'!$B$3:$C$1679,2,FALSE))","v":""},{"$f":"IF(B17=\"\",\"\",VLOOKUP(B17,DB,'Schützen-Datenbank'!$F$1,FALSE))","v":""},{"$nulls":5},0,null,0]
[15,null,{"$f":"IF(B18=\"\",\"\",VLOOKUP(B18,'Schützen-Datenbank'!$B$3:$C$1679,2,FALSE))","v":""},{"$f":"IF(B18=\"\",\"\",VLOOKUP(B18,DB,'Schützen-Datenbank'!$F$1,FALSE))","v":""},{"$nulls":5},0,null,0]
[16,null,{"$f":"IF(B19=\"\",\"\",VLOOKUP(B19,'Schützen-Datenbank'!$B$3:$C$1679,2,FALSE))","v":""},{"$f":"IF(B19=\"\",\"\",VLOOKUP(B19,DB,'Schützen-Datenbank'!$F$1,FALSE))","v":""},{"$nulls":5},0,null,0]
[17,null,{"$f":"IF(B20=\"\",\"\",VLOOKUP(B20,'Schützen-Datenbank'!$B$3:$C$1679,2,FALSE))","v":""},{"$f":"IF(B20=\"\",\"\",VLOOKUP(B20,DB,'Schützen-Datenbank'!$F$1,FALSE))","v":""},{"$nulls":5},0,null,0]
[18,null,{"$f":"IF(B21=\"\",\"\",VLOOKUP(B21,'Schützen-Datenbank'!$B$3:$C$1679,2,FALSE))","v":""},{"$f":"IF(B21=\"\",\"\",VLOOKUP(B21,DB,'Schützen-Datenbank'!$F$1,FALSE))","v":""},{"$nulls":5},0,null,0]
[19,null,{"$f":"IF(B22=\"\",\"\",VLOOKUP(B22,'Schützen-Datenbank'!$B$3:$C$1679,2,FALSE))","v":""},{"$f":"IF(B22=\"\",\"\",VLOOKUP(B22,DB,'Schützen-Datenbank'!$F$1,FALSE))","v":""},{"$nulls":5},0,null,0]
[20,null,{"$f":"IF(B23=\"\",\"\",VLOOKUP(B23,'Schützen-Datenbank'!$B$3:$C$1679,2,FALSE))","v":""},{"$f":"IF(B23=\"\",\"\",VLOOKUP(B23,DB,'Schützen-Datenbank'!$F$1,FALSE))","v":""},{"$nulls":5},0,null,0]
[21,null,{"$f":"IF(B24=\"\",\"\",VLOOKUP(B24,'Schützen-Datenbank'!$B$3:$C$1679,2,FALSE))","v":""},{"$f":"IF(B24=\"\",\"\",VLOOKUP(B24,DB,'Schützen-Datenbank'!$F$1,FALSE))","v":""},{"$nulls":5},0,null,0]
[22,null,{"$f":"IF(B25=\"\",\"\",VLOOKUP(B25,'Schützen-Datenbank'!$B$3:$C$1679,2,FALSE))","v":""},{"$f":"IF(B25=\"\",\"\",VLOOKUP(B25,DB,'Schützen-Datenbank'!$F$1,FALSE))","v":""},{"$nulls":5},0,null,0]
[23,null,{"$f":"IF(B26=\"\",\"\",VLOOKUP(B26,'Schützen-Datenbank'!$B$3:$C$1679,2,FALSE))","v":""},{"$f":"IF(B26=\"\",\"\",VLOOKUP(B26,DB,'Schützen-Datenbank'!$F$1,FALSE))","v":""},{"$nulls":5},0,null,0]
[24,null,{"$f":"IF(B27=\"\",\"\",VLOOKUP(B27,'Schützen-Datenbank'!$B$3:$C$1679,2,FALSE))","v":""},{"$f":"IF(B27=\"\",\"\",VLOOKUP(B27,DB,'Schützen-Datenbank'!$F$1,FALSE))","v":""},{"$nulls":5},0,null,0]
["25 (1. Ersatz)",null,{"$f":"IF(B28=\"\",\"\",VLOOKUP(B28,'Schützen-Datenbank'!$B$3:$C$1679,2,FALSE))","v":""},{"$f":"IF(B28=\"\",\"\",VLOOKUP(B28,DB,'Schützen-Datenbank'!$F$1,FALSE))","v":""},{"$nulls":5},0,null,0]
["26 (2. Ersatz)",null,{"$f":"IF(B29=\"\",\"\",VLOOKUP(B29,'Schützen-Datenbank'!$B$3:$C$1679,2,FALSE))","v":""},{"$f":"IF(B29=\"\",\"\",VLOOKUP(B29,DB,'Schützen-Datenbank'!$F$1,FALSE))","v":""},{"$nulls":5},0,null,0]
["27 (3. Ersatz)",null,{"$f":"IF(B30=\"\",\"\",VLOOKUP(B30,'Schützen-Datenbank'!$B$3:$C$1679,2,FALSE))","v":""},{"$f":"IF(B30=\"\",\"\",VLOOKUP(B30,DB,'Schützen-Datenbank'!$F$1,FALSE))","v":""},{"$nulls":5},0,null,0]
[28,null,{"$f":"IF(B31=\"\",\"\",VLOOKUP(B31,'Schützen-Datenbank'!$B$3:$C$1679,2,FALSE))","v":""},{"$f":"IF(B31=\"\",\"\",VLOOKUP(B31,DB,'Schützen-Datenbank'!$F$1,FALSE))","v":""},{"$nulls":5},0,null,0]
[29,null,{"$f":"IF(B32=\"\",\"\",VLOOKUP(B32,'Schützen-Datenbank'!$B$3:$C$1679,2,FALSE))","v":""},{"$f":"IF(B32=\"\",\"\",VLOOKUP(B32,DB,'Schützen-Datenbank'!$F$1,FALSE))","v":""},{"$nulls":5},0,null,0]
[30,null,{"$f":"IF(B33=\"\",\"\",VLOOKUP(B33,'Schützen-Datenbank'!$B$3:$C$1679,2,FALSE))","v":""},{"$f":"IF(B33=\"\",\"\",VLOOKUP(B33,DB,'Schützen-Datenbank'!$F$1,FALSE))","v":""},{"$nulls":5},0,null,0]
[31,null,{"$f":"IF(B34=\"\",\"\",VLOOKUP(B34,'Schützen-Datenbank'!$B$3:$C$1679,2,FALSE))","v":""},{"$f":"IF(B34=\"\",\"\",VLOOKUP(B34,DB,'Schützen-Datenbank'!$F$1,FALSE))","v":""},{"$nulls":5},0,null,0]
[32,null,{"$f":"IF(B35=\"\",\"\",VLOOKUP(B35,'Schützen-Datenbank'!$B$3:$C$1679,2,FALSE))","v":""},{"$f":"IF(B35=\"\",\"\",VLOOKUP(B35,DB,'Schützen-Datenbank'!$F$1,FALSE))","v":""},{"$nulls":5},0,null,0]
[33,null,{"$f":"IF(B36=\"\",\"\",VLOOKUP(B36,'Schützen-Datenbank'!$B$3:$C$1679,2,FALSE))","v":""},{"$f":"IF(B36=\"\",\"\",VLOOKUP(B36,DB,'Schützen-Datenbank'!$F$1,FALSE))","v":""},{"$nulls":5},{"$f":"SUM(E36:I36)","v":0},null,{"$f":"SUM(E36:F36)","v":0}]
[34,null,{"$f":"IF(B37=\"\",\"\",VLOOKUP(B37,'Schützen-Datenbank'!$B$3:$C$1679,2,FALSE))","v":""},{"$f":"IF(B37=\"\",\"\",VLOOKUP(B37,DB,'Schützen-Datenbank'!$F$1,FALSE))","v":""},{"$nulls":5},0,null,0]
[35,null,{"$f":"IF(B38=\"\",\"\",VLOOKUP(B38,'Schützen-Datenbank'!$B$3:$C$1679,2,FALSE))","v":""},{"$f":"IF(B38=\"\",\"\",VLOOKUP(B38,DB,'Schützen-Datenbank'!$F$1,FALSE))","v":""},{"$nulls":5},0,null,0]
[36,null,{"$f":"IF(B39=\"\",\"\",VLOOKUP(B39,'Schützen-Datenbank'!$B$3:$C$1679,2,FALSE))","v":""},{"$f":"IF(B39=\"\",\"\",VLOOKUP(B39,DB,'Schützen-Datenbank'!$F$1,FALSE))","v":""},{"$nulls":5},0,null,0]
[37,null,{"$f":"IF(B40=\"\",\"\",VLOOKUP(B40,'Schützen-Datenbank'!$B$3:$C$1679,2,FALSE))","v":""},{"$f":"IF(B40=\"\",\"\",VLOOKUP(B40,DB,'Schützen-Datenbank'!$F$1,FALSE))","v":""},{"$nulls":5},0,null,0]
[38,null,{"$f":"IF(B41=\"\",\"\",VLOOKUP(B41,'Schützen-Datenbank'!$B$3:$C$1679,2,FALSE))","v":""},{"$f":"IF(B41=\"\",\"\",VLOOKUP(B41,DB,'Schützen-Datenbank'!$F$1,FALSE))","v":""},{"$nulls":5},0,null,0]
[39,null,{"$f":"IF(B42=\"\",\"\",VLOOKUP(B42,'Schützen-Datenbank'!$B$3:$C$1679,2,FALSE))","v":""},{"$f":"IF(B42=\"\",\"\",VLOOKUP(B42,DB,'Schützen-Datenbank'!$F$1,FALSE))","v":""},{"$nulls":5},0,null,0]
[40,null,{"$f":"IF(B43=\"\",\"\",VLOOKUP(B43,'Schützen-Datenbank'!$B$3:$C$1679,2,FALSE))","v":""},{"$f":"IF(B43=\"\",\"\",VLOOKUP(B43,DB,'Schützen-Datenbank'!$F$1,FALSE))","v":""},{"$nulls":5},0,null,0]
[41,null,{"$f":"IF(B44=\"\",\"\",VLOOKUP(B44,'Schützen-Datenbank'!$B$3:$C$1679,2,FALSE))","v":""},{"$f":"IF(B44=\"\",\"\",VLOOKUP(B44,DB,'Schützen-Datenbank'!$F$1,FALSE))","v":""},{"$nulls":5},0,null,0]
[42,null,{"$f":"IF(B45=\"\",\"\",VLOOKUP(B45,'Schützen-Datenbank'!$B$3:$C$1679,2,FALSE))","v":""},{"$f":"IF(B45=\"\",\"\",VLOOKUP(B45,DB,'Schützen-Datenbank'!$F$1,FALSE))","v":""},{"$nulls":5},0,null,0]
[43,null,{"$f":"IF(B46=\"\",\"\",VLOOKUP(B46,'Schützen-Datenbank'!$B$3:$C$1679,2,FALSE))","v":""},{"$f":"IF(B46=\"\",\"\",VLOOKUP(B46,DB,'Schützen-Datenbank'!$F$1,FALSE))","v":""},{"$nulls":5},0,null,0]
[44,null,{"$f":"IF(B47=\"\",\"\",VLOOKUP(B47,'Schützen-Datenbank'!$B$3:$C$1679,2,FALSE))","v":""},{"$f":"IF(B47=\"\",\"\",VLOOKUP(B47,DB,'Schützen-Datenbank'!$F$1,FALSE))","v":""},{"$nulls":5},0,null,0]
[45,null,{"$f":"IF(B48=\"\",\"\",VLOOKUP(B48,'Schützen-Datenbank'!$B$3:$C$1679,2,FALSE))","v":""},{"$f":"IF(B48=\"\",\"\",VLOOKUP(B48,DB,'Schützen-Datenbank'!$F$1,FALSE))","v":""},{"$nulls":5},0,null,0]
[46,null,{"$f":"IF(B49=\"\",\"\",VLOOKUP(B49,'Schützen-Datenbank'!$B$3:$C$1679,2,FALSE))","v":""},{"$f":"IF(B49=\"\",\"\",VLOOKUP(B49,DB,'Schützen-Datenbank'!$F$1,FALSE))","v":""},{"$nulls":5},0,null,0]
[47,null,{"$f":"IF(B50=\"\",\"\",VLOOKUP(B50,'Schützen-Datenbank'!$B$3:$C$1679,2,FALSE))","v":""},{"$f":"IF(B50=\"\",\"\",VLOOKUP(B50,DB,'Schützen-Datenbank'!$F$1,FALSE))","v":""},{"$nulls":5},0,null,0]
[48,null,{"$f":"IF(B51=\"\",\"\",VLOOKUP(B51,'Schützen-Datenbank'!$B$3:$C$1679,2,FALSE))","v":""},{"$f":"IF(B51=\"\",\"\",VLOOKUP(B51,DB,'Schützen-Datenbank'!$F$1,FALSE))","v":""},{"$nulls":5},0,null,0]
[49,null,{"$f":"IF(B52=\"\",\"\",VLOOKUP(B52,'Schützen-Datenbank'!$B$3:$C$1679,2,FALSE))","v":""},{"$f":"IF(B52=\"\",\"\",VLOOKUP(B52,DB,'Schützen-Datenbank'!$F$1,FALSE))","v":""},{"$nulls":5},0,null,0]
[50,null,{"$f":"IF(B53=\"\",\"\",VLOOKUP(B53,'Schützen-Datenbank'!$B$3:$C$1679,2,FALSE))","v":""},{"$f":"IF(B53=\"\",\"\",VLOOKUP(B53,DB,'Schützen-Datenbank'!$F$1,FALSE))","v":""},{"$nulls":5},0,null,0]
[51,null,{"$f":"IF(B54=\"\",\"\",VLOOKUP(B54,'Schützen-Datenbank'!$B$3:$C$1679,2,FALSE))","v":""},{"$f":"IF(B54=\"\",\"\",VLOOKUP(B54,DB,'Schützen-Datenbank'!$F$1,FALSE))","v":""},{"$nulls":5},0,null,0]
[52,null,{"$f":"IF(B55=\"\",\"\",VLOOKUP(B55,'Schützen-Datenbank'!$B$3:$C$1679,2,FALSE))","v":""},{"$f":"IF(B55=\"\",\"\",VLOOKUP(B55,DB,'Schützen-Datenbank'!$F$1,FALSE))","v":""},{"$nulls":5},0,null,0]
[53,null,{"$f":"IF(B56=\"\",\"\",VLOOKUP(B56,'Schützen-Datenbank'!$B$3:$C$1679,2,FALSE))","v":""},{"$f":"IF(B56=\"\",\"\",VLOOKUP(B56,DB,'Schützen-Datenbank'!$F$1,FALSE))","v":""},{"$nulls":5},0,null,0]
[54,null,{"$f":"IF(B57=\"\",\"\",VLOOKUP(B57,'Schützen-Datenbank'!$B$3:$C$1679,2,FALSE))","v":""},{"$f":"IF(B57=\"\",\"\",VLOOKUP(B57,DB,'Schützen-Datenbank'!$F$1,FALSE))","v":""},{"$nulls":5},0,null,0]
[55,null,{"$f":"IF(B58=\"\",\"\",VLOOKUP(B58,'Schützen-Datenbank'!$B$3:$C$1679,2,FALSE))","v":""},{"$f":"IF(B58=\"\",\"\",VLOOKUP(B58,DB,'Schützen-Datenbank'!$F$1,FALSE))","v":""},{"$nulls":5},0,null,0]
[56,null,{"$f":"IF(B59=\"\",\"\",VLOOKUP(B59,'Schützen-Datenbank'!$B$3:$C$1679,2,FALSE))","v":""},{"$f":"IF(B59=\"\",\"\",VLOOKUP(B59,DB,'Schützen-Datenbank'!$F$1,FALSE))","v":""},{"$nulls":5},0,null,0]
[57,null,{"$f":"IF(B60=\"\",\"\",VLOOKUP(B60,'Schützen-Datenbank'!$B$3:$C$1679,2,FALSE))","v":""},{"$f":"IF(B60=\"\",\"\",VLOOKUP(B60,DB,'Schützen-Datenbank'!$F$1,FALSE))","v":""},{"$nulls":5},0,null,0]
[58,null,{"$f":"IF(B61=\"\",\"\",VLOOKUP(B61,'Schützen-Datenbank'!$B$3:$C$1679,2,FALSE))","v":""},{"$f":"IF(B61=\"\",\"\",VLOOKUP(B61,DB,'Schützen-Datenbank'!$F$1,FALSE))","v":""},{"$nulls":5},0,null,0]
[59,null,{"$f":"IF(B62=\"\",\"\",VLOOKUP(B62,'Schützen-Datenbank'!$B$3:$C$1679,2,FALSE))","v":""},{"$f":"IF(B62=\"\",\"\",VLOOKUP(B62,DB,'Schützen-Datenbank'!$F$1,FALSE))","v":""},{"$nulls":5},0,null,0]
[60,null,{"$f":"IF(B63=\"\",\"\",VLOOKUP(B63,'Schützen-Datenbank'!$B$3:$C$1679,2,FALSE))","v":""},{"$f":"IF(B63=\"\",\"\",VLOOKUP(B63,DB,'Schützen-Datenbank'!$F$1,FALSE))","v":""},{"$nulls":5},0,null,0]
[61,null,{"$f":"IF(B64=\"\",\"\",VLOOKUP(B64,'Schützen-Datenbank'!$B$3:$C$1679,2,FALSE))","v":""},{"$f":"IF(B64=\"\",\"\",VLOOKUP(B64,DB,'Schützen-Datenbank'!$F$1,FALSE))","v":""},{"$nulls":5},0,null,0]
[62,null,{"$f":"IF(B65=\"\",\"\",VLOOKUP(B65,'Schützen-Datenbank'!$B$3:$C$1679,2,FALSE))","v":""},{"$f":"IF(B65=\"\",\"\",VLOOKUP(B65,DB,'Schützen-Datenbank'!$F$1,FALSE))","v":""},{"$nulls":5},0,null,0]
[63,null,{"$f":"IF(B66=\"\",\"\",VLOOKUP(B66,'Schützen-Datenbank'!$B$3:$C$1679,2,FALSE))","v":""},{"$f":"IF(B66=\"\",\"\",VLOOKUP(B66,DB,'Schützen-Datenbank'!$F$1,FALSE))","v":""},{"$nulls":5},0,null,0]
[64,null,{"$f":"IF(B67=\"\",\"\",VLOOKUP(B67,'Schützen-Datenbank'!$B$3:$C$1679,2,FALSE))","v":""},{"$f":"IF(B67=\"\",\"\",VLOOKUP(B67,DB,'Schützen-Datenbank'!$F$1,FALSE))","v":""},{"$nulls":5},0,null,0]
[65,null,{"$f":"IF(B68=\"\",\"\",VLOOKUP(B68,'Schützen-Datenbank'!$B$3:$C$1679,2,FALSE))","v":""},{"$f":"IF(B68=\"\",\"\",VLOOKUP(B68,DB,'Schützen-Datenbank'!$F$1,FALSE))","v":""},{"$nulls":5},{"$f":"SUM(E68:I68)","v":0},null,{"$f":"SUM(E68:F68)","v":0}]
[66,null,{"$f":"IF(B69=\"\",\"\",VLOOKUP(B69,'Schützen-Datenbank'!$B$3:$C$1679,2,FALSE))","v":""},{"$f":"IF(B69=\"\",\"\",VLOOKUP(B69,DB,'Schützen-Datenbank'!$F$1,FALSE))","v":""},{"$nulls":5},0,null,0]
[67,null,{"$f":"IF(B70=\"\",\"\",VLOOKUP(B70,'Schützen-Datenbank'!$B$3:$C$1679,2,FALSE))","v":""},{"$f":"IF(B70=\"\",\"\",VLOOKUP(B70,DB,'Schützen-Datenbank'!$F$1,FALSE))","v":""},{"$nulls":5},0,null,0]
[68,null,{"$f":"IF(B71=\"\",\"\",VLOOKUP(B71,'Schützen-Datenbank'!$B$3:$C$1679,2,FALSE))","v":""},{"$f":"IF(B71=\"\",\"\",VLOOKUP(B71,DB,'Schützen-Datenbank'!$F$1,FALSE))","v":""},{"$nulls":5},0,null,0]
[69,null,{"$f":"IF(B72=\"\",\"\",VLOOKUP(B72,'Schützen-Datenbank'!$B$3:$C$1679,2,FALSE))","v":""},{"$f":"IF(B72=\"\",\"\",VLOOKUP(B72,DB,'Schützen-Datenbank'!$F$1,FALSE))","v":""},{"$nulls":5},0,null,0]
[70,null,{"$f":"IF(B73=\"\",\"\",VLOOKUP(B73,'Schützen-Datenbank'!$B$3:$C$1679,2,FALSE))","v":""},{"$f":"IF(B73=\"\",\"\",VLOOKUP(B73,DB,'Schützen-Datenbank'!$F$1,FALSE))","v":""},{"$nulls":5},0,null,0]
[71,null,{"$f":"IF(B74=\"\",\"\",VLOOKUP(B74,'Schützen-Datenbank'!$B$3:$C$1679,2,FALSE))","v":""},{"$f":"IF(B74=\"\",\"\",VLOOKUP(B74,DB,'Schützen-Datenbank'!$F$1,FALSE))","v":""},{"$nulls":5},0,null,0]
[72,null,{"$f":"IF(B75=\"\",\"\",VLOOKUP(B75,'Schützen-Datenbank'!$B$3:$C$1679,2,FALSE))","v":""},{"$f":"IF(B75=\"\",\"\",VLOOKUP(B75,DB,'Schützen-Datenbank'!$F$1,FALSE))","v":""},{"$nulls":5},0,null,0]
[73,null,{"$f":"IF(B76=\"\",\"\",VLOOKUP(B76,'Schützen-Datenbank'!$B$3:$C$1679,2,FALSE))","v":""},{"$f":"IF(B76=\"\",\"\",VLOOKUP(B76,DB,'Schützen-Datenbank'!$F$1,FALSE))","v":""},{"$nulls":5},0,null,0]
[74,null,{"$f":"IF(B77=\"\",\"\",VLOOKUP(B77,'Schützen-Datenbank'!$B$3:$C$1679,2,FALSE))","v":""},{"$f":"IF(B77=\"\",\"\",VLOOKUP(B77,DB,'Schützen-Datenbank'!$F$1,FALSE))","v":""},{"$nulls":5},0,null,0]
[75,null,{"$f":"IF(B78=\"\",\"\",VLOOKUP(B78,'Schützen-Datenbank'!$B$3:$C$1679,2,FALSE))","v":""},{"$f":"IF(B78=\"\",\"\",VLOOKUP(B78,DB,'Schützen-Datenbank'!$F$1,FALSE))","v":""},{"$nulls":5},0,null,0]
[76,null,{"$f":"IF(B79=\"\",\"\",VLOOKUP(B79,'Schützen-Datenbank'!$B$3:$C$1679,2,FALSE))","v":""},{"$f":"IF(B79=\"\",\"\",VLOOKUP(B79,DB,'Schützen-Datenbank'!$F$1,FALSE))","v":""},{"$nulls":5},0,null,0]
[77,null,{"$f":"IF(B80=\"\",\"\",VLOOKUP(B80,'Schützen-Datenbank'!$B$3:$C$1679,2,FALSE))","v":""},{"$f":"IF(B80=\"\",\"\",VLOOKUP(B80,DB,'Schützen-Datenbank'!$F$1,FALSE))","v":""},{"$nulls":5},0,null,0]
[78,null,{"$f":"IF(B81=\"\",\"\",VLOOKUP(B81,'Schützen-Datenbank'!$B$3:$C$1679,2,FALSE))","v":""},{"$f":"IF(B81=\"\",\"\",VLOOKUP(B81,DB,'Schützen-Datenbank'!$F$1,FALSE))","v":""},{"$nulls":5},0,null,0]
[79,null,{"$f":"IF(B82=\"\",\"\",VLOOKUP(B82,'Schützen-Datenbank'!$B$3:$C$1679,2,FALSE))","v":""},{"$f":"IF(B82=\"\",\"\",VLOOKUP(B82,DB,'Schützen-Datenbank'!$F$1,FALSE))","v":""},{"$nulls":5},0,null,0]
[80,null,{"$f":"IF(B83=\"\",\"\",VLOOKUP(B83,'Schützen-Datenbank'!$B$3:$C$1679,2,FALSE))","v":""},{"$f":"IF(B83=\"\",\"\",VLOOKUP(B83,DB,'Schützen-Datenbank'!$F$1,FALSE))","v":""},{"$nulls":5},0,null,0]
[81,null,{"$f":"IF(B84=\"\",\"\",VLOOKUP(B84,'Schützen-Datenbank'!$B$3:$C$1679,2,FALSE))","v":""},{"$f":"IF(B84=\"\",\"\",VLOOKUP(B84,DB,'Schützen-Datenbank'!$F$1,FALSE))","v":""},{"$nulls":5},0,null,0]
[82,null,{"$f":"IF(B85=\"\",\"\",VLOOKUP(B85,'Schützen-Datenbank'!$B$3:$C$1679,2,FALSE))","v":""},{"$f":"IF(B85=\"\",\"\",VLOOKUP(B85,DB,'Schützen-Datenbank'!$F$1,FALSE))","v":""},{"$nulls":5},0,null,0]
[83,null,{"$f":"IF(B86=\"\",\"\",VLOOKUP(B86,'Schützen-Datenbank'!$B$3:$C$1679,2,FALSE))","v":""},{"$f":"IF(B86=\"\",\"\",VLOOKUP(B86,DB,'Schützen-Datenbank'!$F$1,FALSE))","v":""},{"$nulls":5},0,null,0]
[84,null,{"$f":"IF(B87=\"\",\"\",VLOOKUP(B87,'Schützen-Datenbank'!$B$3:$C$1679,2,FALSE))","v":""},{"$f":"IF(B87=\"\",\"\",VLOOKUP(B87,DB,'Schützen-Datenbank'!$F$1,FALSE))","v":""},{"$nulls":5},0,null,0]
[85,null,{"$f":"IF(B88=\"\",\"\",VLOOKUP(B88,'Schützen-Datenbank'!$B$3:$C$1679,2,FALSE))","v":""},{"$f":"IF(B88=\"\",\"\",VLOOKUP(B88,DB,'Schützen-Datenbank'!$F$1,FALSE))","v":""},{"$nulls":5},0,null,0]
[86,null,{"$f":"IF(B89=\"\",\"\",VLOOKUP(B89,'Schützen-Datenbank'!$B$3:$C$1679,2,FALSE))","v":""},{"$f":"IF(B89=\"\",\"\",VLOOKUP(B89,DB,'Schützen-Datenbank'!$F$1,FALSE))","v":""},{"$nulls":5},0,null,0]
[87,null,{"$f":"IF(B90=\"\",\"\",VLOOKUP(B90,'Schützen-Datenbank'!$B$3:$C$1679,2,FALSE))","v":""},{"$f":"IF(B90=\"\",\"\",VLOOKUP(B90,DB,'Schützen-Datenbank'!$F$1,FALSE))","v":""},{"$nulls":5},0,null,0]
[88,null,{"$f":"IF(B91=\"\",\"\",VLOOKUP(B91,'Schützen-Datenbank'!$B$3:$C$1679,2,FALSE))","v":""},{"$f":"IF(B91=\"\",\"\",VLOOKUP(B91,DB,'Schützen-Datenbank'!$F$1,FALSE))","v":""},{"$nulls":5},0,null,0]
[89,null,{"$f":"IF(B92=\"\",\"\",VLOOKUP(B92,'Schützen-Datenbank'!$B$3:$C$1679,2,FALSE))","v":""},{"$f":"IF(B92=\"\",\"\",VLOOKUP(B92,DB,'Schützen-Datenbank'!$F$1,FALSE))","v":""},{"$nulls":5},0,null,0]
[90,null,{"$f":"IF(B93=\"\",\"\",VLOOKUP(B93,'Schützen-Datenbank'!$B$3:$C$1679,2,FALSE))","v":""},{"$f":"IF(B93=\"\",\"\",VLOOKUP(B93,DB,'Schützen-Datenbank'!$F$1,FALSE))","v":""},{"$nulls":5},0,null,0]
[91,null,{"$f":"IF(B94=\"\",\"\",VLOOKUP(B94,'Schützen-Datenbank'!$B$3:$C$1679,2,FALSE))","v":""},{"$f":"IF(B94=\"\",\"\",VLOOKUP(B94,DB,'Schützen-Datenbank'!$F$1,FALSE))","v":""},{"$nulls":5},0,null,0]
[92,null,{"$f":"IF(B95=\"\",\"\",VLOOKUP(B95,'Schützen-Datenbank'!$B$3:$C$1679,2,FALSE))","v":""},{"$f":"IF(B95=\"\",\"\",VLOOKUP(B95,DB,'Schützen-Datenbank'!$F$1,FALSE))","v":""},{"$nulls":5},0,null,0]
[93,null,{"$f":"IF(B96=\"\",\"\",VLOOKUP(B96,'Schützen-Datenbank'!$B$3:$C$1679,2,FALSE))","v":""},{"$f":"IF(B96=\"\",\"\",VLOOKUP(B96,DB,'Schützen-Datenbank'!$F$1,FALSE))","v":""},{"$nulls":5},0,null,0]
[94,null,{"$f":"IF(B97=\"\",\"\",VLOOKUP(B97,'Schützen-Datenbank'!$B$3:$C$1679,2,FALSE))","v":""},{"$f":"IF(B97=\"\",\"\",VLOOKUP(B97,DB,'Schützen-Datenbank'!$F$1,FALSE))","v":""},{"$nulls":5},0,null,0]
[95,null,{"$f":"IF(B98=\"\",\"\",VLOOKUP(B98,'Schützen-Datenbank'!$B$3:$C$1679,2,FALSE))","v":""},{"$f":"IF(B98=\"\",\"\",VLOOKUP(B98,DB,'Schützen-Datenbank'!$F$1,FALSE))","v":""},{"$nulls":5},0,null,0]
[{"$nulls":3},{"$f":"IF(B99=\"\",\"\",VLOOKUP(B99,'Schützen-Datenbank'!#REF!,6,FALSE))","v":""}]
[null,null,"Rangierung Feld Ordonnanz:"]
[null,null,"a) Einzelwettschiessen Kat D oder E"]
[null,null,"b) das total der 2 besten Kantonalstiche Kat. D oder E"]
[null,null,"c) Bundesprogramm"]
[null,null,"d) Feldschiessen"]

{"sheet":"Quali_Jungschützen","index":2,"n_rows":98,"n_cols":10,"rows_kept":98,"hidden":true,"merged":[[0,2,0,6],[0,7,0,8],[0,9,0,10],[1,0,1,7],[1,9,1,10]]}
[null,null,"Quali Kantonaler Meisterschütze ",{"$nulls":4},{"$f":"TODAY()","v":"2025-04-09"},null,"Meldeschluss"]
["               Jungschützen",{"$nulls":8},{"$f":"'Quali_Feld Sport'!J2","v":"07.09."}]
["Quali Rang","Lizenz","Name / Vorname:","Verein:","JS Wett","FS","BS ","JS-Stich","Total"]
[1,null,{"$f":"IF(B4=\"\",\"\",VLOOKUP(B4,'Schützen-Datenbank'!$B$3:$C$1679,2,FALSE))","v":""},{"$f":"IF(B4=\"\",\"\",VLOOKUP(B4,'Schützen-Datenbank'!$B$360:$G$1828,6,FALSE))","v":""},{"$nulls":4},{"$f":"SUM(E4:H4)","v":0}]
[2,null,{"$f":"IF(B5=\"\",\"\",VLOOKUP(B5,'Schützen-Datenbank'!$B$3:$C$1679,2,FALSE))","v":""},{"$f":"IF(B5=\"\",\"\",VLOOKUP(B5,'Schützen-Datenbank'!$B$360:$G$1828,6,FALSE))","v":""},{"$nulls":4},0]
[3,null,{"$f":"IF(B6=\"\",\"\",VLOOKUP(B6,'Schützen-Datenbank'!$B$3:$C$1679,2,FALSE))","v":""},{"$f":"IF(B6=\"\",\"\",VLOOKUP(B6,'Schützen-Datenbank'!$B$360:$G$1828,6,FALSE))","v":""},{"$nulls":4},0]
[4,null,{"$f":"IF(B7=\"\",\"\",VLOOKUP(B7,'Schützen-Datenbank'!$B$3:$C$1679,2,FALSE))","v":""},{"$f":"IF(B7=\"\",\"\",VLOOKUP(B7,'Schützen-Datenbank'!$B$360:$G$1828,6,FALSE))","v":""},{"$nulls":4},0]
[5,null,{"$f":"IF(B8=\"\",\"\",VLOOKUP(B8,'Schützen-Datenbank'!$B$3:$C$1679,2,FALSE))","v":""},{"$f":"IF(B8=\"\",\"\",VLOOKUP(B8,'Schützen-Datenbank'!$B$360:$G$1828,6,FALSE))","v":""},{"$nulls":4},0]
[6,null,{"$f":"IF(B9=\"\",\"\",VLOOKUP(B9,'Schützen-Datenbank'!$B$3:$C$1679,2,FALSE))","v":""},{"$f":"IF(B9=\"\",\"\",VLOOKUP(B9,'Schützen-Datenbank'!$B$360:$G$1828,6,FALSE))","v":""},{"$nulls":4},0]
[7,null,{"$f":"IF(B10=\"\",\"\",VLOOKUP(B10,'Schützen-Datenbank'!$B$3:$C$1679,2,FALSE))","v":""},{"$f":"IF(B10=\"\",\"\",VLOOKUP(B10,'Schützen-Datenbank'!$B$360:$G$1828,6,FALSE))","v":""},{"$nulls":4},0]
[8,null,{"$f":"IF(B11=\"\",\"\",VLOOKUP(B11,'Schützen-Datenbank'!$B$3:$C$1679,2,FALSE))","v":""},{"$f":"IF(B11=\"\",\"\",VLOOKUP(B11,'Schützen-Datenbank'!$B$360:$G$1828,6,FALSE))","v":""},{"$nulls":4},0]
[9,null,{"$f":"IF(B12=\"\",\"\",VLOOKUP(B12,'Schützen-Datenbank'!$B$3:$C$1679,2,FALSE))","v":""},{"$f":"IF(B12=\"\",\"\",VLOOKUP(B12,'Schützen-Datenbank'!$B$360:$G$1828,6,FALSE))","v":""},{"$nulls":4},0]
[10,null,{"$f":"IF(B13=\"\",\"\",VLOOKUP(B13,'Schützen-Datenbank'!$B$3:$C$1679,2,FALSE))","v":""},{"$f":"IF(B13=\"\",\"\",VLOOKUP(B13,'Schützen-Datenbank'!$B$360:$G$1828,6,FALSE))","v":""},{"$nulls":4},0]
[11,null,{"$f":"IF(B14=\"\",\"\",VLOOKUP(B14,'Schützen-Datenbank'!$B$3:$C$1679,2,FALSE))","v":""},{"$f":"IF(B14=\"\",\"\",VLOOKUP(B14,'Schützen-Datenbank'!$B$360:$G$1828,6,FALSE))","v":""},{"$nulls":4},0]
[12,null,{"$f":"IF(B15=\"\",\"\",VLOOKUP(B15,'Schützen-Datenbank'!$B$3:$C$1679,2,FALSE))","v":""},{"$f":"IF(B15=\"\",\"\",VLOOKUP(B15,'Schützen-Datenbank'!$B$360:$G$1828,6,FALSE))","v":""},{"$nulls":4},0]
[13,null,{"$f":"IF(B16=\"\",\"\",VLOOKUP(B16,'Schützen-Datenbank'!$B$3:$C$1679,2,FALSE))","v":""},{"$f":"IF(B16=\"\",\"\",VLOOKUP(B16,'Schützen-Datenbank'!$B$360:$G$1828,6,FALSE))","v":""},{"$nulls":4},0]
[14,null,{"$f":"IF(B17=\"\",\"\",VLOOKUP(B17,'Schützen-Datenbank'!$B$3:$C$1679,2,FALSE))","v":""},{"$f":"IF(B17=\"\",\"\",VLOOKUP(B17,'Schützen-Datenbank'!$B$360:$G$1828,6,FALSE))","v":""},{"$nulls":4},0]
[15,null,{"$f":"IF(B18=\"\",\"\",VLOOKUP(B18,'Schützen-Datenbank'!$B$3:$C$1679,2,FALSE))","v":""},{"$f":"IF(B18=\"\",\"\",VLOOKUP(B18,'Schützen-Datenbank'!$B$360:$G$1828,6,FALSE))","v":""},{"$nulls":4},0]
[16,null,{"$f":"IF(B19=\"\",\"\",VLOOKUP(B19,'Schützen-Datenbank'!$B$3:$C$1679,2,FALSE))","v":""},{"$f":"IF(B19=\"\",\"\",VLOOKUP(B19,'Schützen-Datenbank'!$B$360:$G$1828,6,FALSE))","v":""},{"$nulls":4},0]
[17,null,{"$f":"IF(B20=\"\",\"\",VLOOKUP(B20,'Schützen-Datenbank'!$B$3:$C$1679,2,FALSE))","v":""},{"$f":"IF(B20=\"\",\"\",VLOOKUP(B20,'Schützen-Datenbank'!$B$360:$G$1828,6,FALSE))","v":""},{"$nulls":4},0]
[18,null,{"$f":"IF(B21=\"\",\"\",VLOOKUP(B21,'Schützen-Datenbank'!$B$3:$C$1679,2,FALSE))","v":""},{"$f":"IF(B21=\"\",\"\",VLOOKUP(B21,'Schützen-Datenbank'!$B$360:$G$1828,6,FALSE))","v":""},{"$nulls":4},0]
[19,null,{"$f":"IF(B22=\"\",\"\",VLOOKUP(B22,'Schützen-Datenbank'!$B$3:$C$1679,2,FALSE))","v":""},{"$f":"IF(B22=\"\",\"\",VLOOKUP(B22,'Schützen-Datenbank'!$B$360:$G$1828,6,FALSE))","v":""},{"$nulls":4},0]
[20,null,{"$f":"IF(B23=\"\",\"\",VLOOKUP(B23,'Schützen-Datenbank'!$B$3:$C$1679,2,FALSE))","v":""},{"$f":"IF(B23=\"\",\"\",VLOOKUP(B23,'Schützen-Datenbank'!$B$360:$G$1828,6,FALSE))","v":""},{"$nulls":4},0]
[21,null,{"$f":"IF(B24=\"\",\"\",VLOOKUP(B24,'Schützen-Datenbank'!$B$3:$C$1679,2,FALSE))","v":""},{"$f":"IF(B24=\"\",\"\",VLOOKUP(B24,'Schützen-Datenbank'!$B$360:$G$1828,6,FALSE))","v":""},{"$nulls":4},0]
[22,null,{"$f":"IF(B25=\"\",\"\",VLOOKUP(B25,'Schützen-Datenbank'!$B$3:$C$1679,2,FALSE))","v":""},{"$f":"IF(B25=\"\",\"\",VLOOKUP(B25,'Schützen-Datenbank'!$B$360:$G$1828,6,FALSE))","v":""},{"$nulls":4},0]
[23,null,{"$f":"IF(B26=\"\",\"\",VLOOKUP(B26,'Schützen-Datenbank'!$B$3:$C$1679,2,FALSE))","v":""},{"$f":"IF(B26=\"\",\"\",VLOOKUP(B26,'Schützen-Datenbank'!$B$360:$G$1828,6,FALSE))","v":""},{"$nulls":4},0]
[24,null,{"$f":"IF(B27=\"\",\"\",VLOOKUP(B27,'Schützen-Datenbank'!$B$3:$C$1679,2,FALSE))","v":""},{"$f":"IF(B27=\"\",\"\",VLOOKUP(B27,'Schützen-Datenbank'!$B$360:$G$1828,6,FALSE))","v":""},{"$nulls":4},0]
[25,null,{"$f":"IF(B28=\"\",\"\",VLOOKUP(B28,'Schützen-Datenbank'!$B$3:$C$1679,2,FALSE))","v":""},{"$f":"IF(B28=\"\",\"\",VLOOKUP(B28,'Schützen-Datenbank'!$B$360:$G$1828,6,FALSE))","v":""},{"$nulls":4},0]
[26,null,{"$f":"IF(B29=\"\",\"\",VLOOKUP(B29,'Schützen-Datenbank'!$B$3:$C$1679,2,FALSE))","v":""},{"$f":"IF(B29=\"\",\"\",VLOOKUP(B29,'Schützen-Datenbank'!$B$360:$G$1828,6,FALSE))","v":""},{"$nulls":4},0]
[27,null,{"$f":"IF(B30=\"\",\"\",VLOOKUP(B30,'Schützen-Datenbank'!$B$3:$C$1679,2,FALSE))","v":""},{"$f":"IF(B30=\"\",\"\",VLOOKUP(B30,'Schützen-Datenbank'!$B$360:$G$1828,6,FALSE))","v":""},{"$nulls":4},0]
[28,null,{"$f":"IF(B31=\"\",\"\",VLOOKUP(B31,'Schützen-Datenbank'!$B$3:$C$1679,2,FALSE))","v":""},{"$f":"IF(B31=\"\",\"\",VLOOKUP(B31,'Schützen-Datenbank'!$B$360:$G$1828,6,FALSE))","v":""},{"$nulls":4},0]
[29,null,{"$f":"IF(B32=\"\",\"\",VLOOKUP(B32,'Schützen-Datenbank'!$B$3:$C$1679,2,FALSE))","v":""},{"$f":"IF(B32=\"\",\"\",VLOOKUP(B32,'Schützen-Datenbank'!$B$360:$G$1828,6,FALSE))","v":""},{"$nulls":4},0]
[30,null,{"$f":"IF(B33=\"\",\"\",VLOOKUP(B33,'Schützen-Datenbank'!$B$3:$C$1679,2,FALSE))","v":""},{"$f":"IF(B33=\"\",\"\",VLOOKUP(B33,'Schützen-Datenbank'!$B$360:$G$1828,6,FALSE))","v":""},{"$nulls":4},0]
[31,null,{"$f":"IF(B34=\"\",\"\",VLOOKUP(B34,'Schützen-Datenbank'!$B$3:$C$1679,2,FALSE))","v":""},{"$f":"IF(B34=\"\",\"\",VLOOKUP(B34,'Schützen-Datenbank'!$B$360:$G$1828,6,FALSE))","v":""},{"$nulls":4},0]
[32,null,{"$f":"IF(B35=\"\",\"\",VLOOKUP(B35,'Schützen-Datenbank'!$B$3:$C$1679,2,FALSE))","v":""},{"$f":"IF(B35=\"\",\"\",VLOOKUP(B35,'Schützen-Datenbank'!$B$360:$G$1828,6,FALSE))","v":""},{"$nulls":4},0]
[33,null,{"$f":"IF(B36=\"\",\"\",VLOOKUP(B36,'Schützen-Datenbank'!$B$3:$C$1679,2,FALSE))","v":""},{"$f":"IF(B36=\"\",\"\",VLOOKUP(B36,'Schützen-Datenbank'!$B$360:$G$1828,6,FALSE))","v":""},{"$nulls":4},{"$f":"SUM(E36:H36)","v":0}]
[34,null,{"$f":"IF(B37=\"\",\"\",VLOOKUP(B37,'Schützen-Datenbank'!$B$3:$C$1679,2,FALSE))","v":""},{"$f":"IF(B37=\"\",\"\",VLOOKUP(B37,'Schützen-Datenbank'!$B$360:$G$1828,6,FALSE))","v":""},{"$nulls":4},0]
[35,null,{"$f":"IF(B38=\"\",\"\",VLOOKUP(B38,'Schützen-Datenbank'!$B$3:$C$1679,2,FALSE))","v":""},{"$f":"IF(B38=\"\",\"\",VLOOKUP(B38,'Schützen-Datenbank'!$B$360:$G$1828,6,FALSE))","v":""},{"$nulls":4},0]
[36,null,{"$f":"IF(B39=\"\",\"\",VLOOKUP(B39,'Schützen-Datenbank'!$B$3:$C$1679,2,FALSE))","v":""},{"$f":"IF(B39=\"\",\"\",VLOOKUP(B39,'Schützen-Datenbank'!$B$360:$G$1828,6,FALSE))","v":""},{"$nulls":4},0]
[37,null,{"$f":"IF(B40=\"\",\"\",VLOOKUP(B40,'Schützen-Datenbank'!$B$3:$C$1679,2,FALSE))","v":""},{"$f":"IF(B40=\"\",\"\",VLOOKUP(B40,'Schützen-Datenbank'!$B$360:$G$1828,6,FALSE))","v":""},{"$nulls":4},0]
[38,null,{"$f":"IF(B41=\"\",\"\",VLOOKUP(B41,'Schützen-Datenbank'!$B$3:$C$1679,2,FALSE))","v":""},{"$f":"IF(B41=\"\",\"\",VLOOKUP(B41,'Schützen-Datenbank'!$B$360:$G$1828,6,FALSE))","v":""},{"$nulls":4},0]
[39,null,{"$f":"IF(B42=\"\",\"\",VLOOKUP(B42,'Schützen-Datenbank'!$B$3:$C$1679,2,FALSE))","v":""},{"$f":"IF(B42=\"\",\"\",VLOOKUP(B42,'Schützen-Datenbank'!$B$360:$G$1828,6,FALSE))","v":""},{"$nulls":4},0]
[40,null,{"$f":"IF(B43=\"\",\"\",VLOOKUP(B43,'Schützen-Datenbank'!$B$3:$C$1679,2,FALSE))","v":""},{"$f":"IF(B43=\"\",\"\",VLOOKUP(B43,'Schützen-Datenbank'!$B$360:$G$1828,6,FALSE))","v":""},{"$nulls":4},0]
[41,null,{"$f":"IF(B44=\"\",\"\",VLOOKUP(B44,'Schützen-Datenbank'!$B$3:$C$1679,2,FALSE))","v":""},{"$f":"IF(B44=\"\",\"\",VLOOKUP(B44,'Schützen-Datenbank'!$B$360:$G$1828,6,FALSE))","v":""},{"$nulls":4},0]
[42,null,{"$f":"IF(B45=\"\",\"\",VLOOKUP(B45,'Schützen-Datenbank'!$B$3:$C$1679,2,FALSE))","v":""},{"$f":"IF(B45=\"\",\"\",VLOOKUP(B45,'Schützen-Datenbank'!$B$360:$G$1828,6,FALSE))","v":""},{"$nulls":4},0]
[43,null,{"$f":"IF(B46=\"\",\"\",VLOOKUP(B46,'Schützen-Datenbank'!$B$3:$C$1679,2,FALSE))","v":""},{"$f":"IF(B46=\"\",\"\",VLOOKUP(B46,'Schützen-Datenbank'!$B$360:$G$1828,6,FALSE))","v":""},{"$nulls":4},0]
[44,null,{"$f":"IF(B47=\"\",\"\",VLOOKUP(B47,'Schützen-Datenbank'!$B$3:$C$1679,2,FALSE))","v":""},{"$f":"IF(B47=\"\",\"\",VLOOKUP(B47,'Schützen-Datenbank'!$B$360:$G$1828,6,FALSE))","v":""},{"$nulls":4},0]
[45,null,{"$f":"IF(B48=\"\",\"\",VLOOKUP(B48,'Schützen-Datenbank'!$B$3:$C$1679,2,FALSE))","v":""},{"$f":"IF(B48=\"\",\"\",VLOOKUP(B48,'Schützen-Datenbank'!$B$360:$G$1828,6,FALSE))","v":""},{"$nulls":4},0]
[46,null,{"$f":"IF(B49=\"\",\"\",VLOOKUP(B49,'Schützen-Datenbank'!$B$3:$C$1679,2,FALSE))","v":""},{"$f":"IF(B49=\"\",\"\",VLOOKUP(B49,'Schützen-Datenbank'!$B$360:$G$1828,6,FALSE))","v":""},{"$nulls":4},0]
[47,null,{"$f":"IF(B50=\"\",\"\",VLOOKUP(B50,'Schützen-Datenbank'!$B$3:$C$1679,2,FALSE))","v":""},{"$f":"IF(B50=\"\",\"\",VLOOKUP(B50,'Schützen-Datenbank'!$B$360:$G$1828,6,FALSE))","v":""},{"$nulls":4},0]
[48,null,{"$f":"IF(B51=\"\",\"\",VLOOKUP(B51,'Schützen-Datenbank'!$B$3:$C$1679,2,FALSE))","v":""},{"$f":"IF(B51=\"\",\"\",VLOOKUP(B51,'Schützen-Datenbank'!$B$360:$G$1828,6,FALSE))","v":""},{"$nulls":4},0]
[49,null,{"$f":"IF(B52=\"\",\"\",VLOOKUP(B52,'Schützen-Datenbank'!$B$3:$C$1679,2,FALSE))","v":""},{"$f":"IF(B52=\"\",\"\",VLOOKUP(B52,'Schützen-Datenbank'!$B$360:$G$1828,6,FALSE))","v":""},{"$nulls":4},0]
[50,null,{"$f":"IF(B53=\"\",\"\",VLOOKUP(B53,'Schützen-Datenbank'!$B$3:$C$1679,2,FALSE))","v":""},{"$f":"IF(B53=\"\",\"\",VLOOKUP(B53,'Schützen-Datenbank'!$B$360:$G$1828,6,FALSE))","v":""},{"$nulls":4},0]
[51,null,{"$f":"IF(B54=\"\",\"\",VLOOKUP(B54,'Schützen-Datenbank'!$B$3:$C$1679,2,FALSE))","v":""},{"$f":"IF(B54=\"\",\"\",VLOOKUP(B54,'Schützen-Datenbank'!$B$360:$G$1828,6,FALSE))","v":""},{"$nulls":4},0]
[52,null,{"$f":"IF(B55=\"\",\"\",VLOOKUP(B55,'Schützen-Datenbank'!$B$3:$C$1679,2,FALSE))","v":""},{"$f":"IF(B55=\"\",\"\",VLOOKUP(B55,'Schützen-Datenbank'!$B$360:$G$1828,6,FALSE))","v":""},{"$nulls":4},0]
[53,null,{"$f":"IF(B56=\"\",\"\",VLOOKUP(B56,'Schützen-Datenbank'!$B$3:$C$1679,2,FALSE))","v":""},{"$f":"IF(B56=\"\",\"\",VLOOKUP(B56,'Schützen-Datenbank'!$B$360:$G$1828,6,FALSE))","v":""},{"$nulls":4},0]
[54,null,{"$f":"IF(B57=\"\",\"\",VLOOKUP(B57,'Schützen-Datenbank'!$B$3:$C$1679,2,FALSE))","v":""},{"$f":"IF(B57=\"\",\"\",VLOOKUP(B57,'Schützen-Datenbank'!$B$360:$G$1828,6,FALSE))","v":""},{"$nulls":4},0]
[55,null,{"$f":"IF(B58=\"\",\"\",VLOOKUP(B58,'Schützen-Datenbank'!$B$3:$C$1679,2,FALSE))","v":""},{"$f":"IF(B58=\"\",\"\",VLOOKUP(B58,'Schützen-Datenbank'!$B$360:$G$1828,6,FALSE))","v":""},{"$nulls":4},0]
[56,null,{"$f":"IF(B59=\"\",\"\",VLOOKUP(B59,'Schützen-Datenbank'!$B$3:$C$1679,2,FALSE))","v":""},{"$f":"IF(B59=\"\",\"\",VLOOKUP(B59,'Schützen-Datenbank'!$B$360:$G$1828,6,FALSE))","v":""},{"$nulls":4},0]
[57,null,{"$f":"IF(B60=\"\",\"\",VLOOKUP(B60,'Schützen-Datenbank'!$B$3:$C$1679,2,FALSE))","v":""},{"$f":"IF(B60=\"\",\"\",VLOOKUP(B60,'Schützen-Datenbank'!$B$360:$G$1828,6,FALSE))","v":""},{"$nulls":4},0]
[58,null,{"$f":"IF(B61=\"\",\"\",VLOOKUP(B61,'Schützen-Datenbank'!$B$3:$C$1679,2,FALSE))","v":""},{"$f":"IF(B61=\"\",\"\",VLOOKUP(B61,'Schützen-Datenbank'!$B$360:$G$1828,6,FALSE))","v":""},{"$nulls":4},0]
[59,null,{"$f":"IF(B62=\"\",\"\",VLOOKUP(B62,'Schützen-Datenbank'!$B$3:$C$1679,2,FALSE))","v":""},{"$f":"IF(B62=\"\",\"\",VLOOKUP(B62,'Schützen-Datenbank'!$B$360:$G$1828,6,FALSE))","v":""},{"$nulls":4},0]
[60,null,{"$f":"IF(B63=\"\",\"\",VLOOKUP(B63,'Schützen-Datenbank'!$B$3:$C$1679,2,FALSE))","v":""},{"$f":"IF(B63=\"\",\"\",VLOOKUP(B63,'Schützen-Datenbank'!$B$360:$G$1828,6,FALSE))","v":""},{"$nulls":4},0]
[61,null,{"$f":"IF(B64=\"\",\"\",VLOOKUP(B64,'Schützen-Datenbank'!$B$3:$C$1679,2,FALSE))","v":""},{"$f":"IF(B64=\"\",\"\",VLOOKUP(B64,'Schützen-Datenbank'!$B$360:$G$1828,6,FALSE))","v":""},{"$nulls":4},0]
[62,null,{"$f":"IF(B65=\"\",\"\",VLOOKUP(B65,'Schützen-Datenbank'!$B$3:$C$1679,2,FALSE))","v":""},{"$f":"IF(B65=\"\",\"\",VLOOKUP(B65,'Schützen-Datenbank'!$B$360:$G$1828,6,FALSE))","v":""},{"$nulls":4},0]
[63,null,{"$f":"IF(B66=\"\",\"\",VLOOKUP(B66,'Schützen-Datenbank'!$B$3:$C$1679,2,FALSE))","v":""},{"$f":"IF(B66=\"\",\"\",VLOOKUP(B66,'Schützen-Datenbank'!$B$360:$G$1828,6,FALSE))","v":""},{"$nulls":4},0]
[64,null,{"$f":"IF(B67=\"\",\"\",VLOOKUP(B67,'Schützen-Datenbank'!$B$3:$C$1679,2,FALSE))","v":""},{"$f":"IF(B67=\"\",\"\",VLOOKUP(B67,'Schützen-Datenbank'!$B$360:$G$1828,6,FALSE))","v":""},{"$nulls":4},0]
[65,null,{"$f":"IF(B68=\"\",\"\",VLOOKUP(B68,'Schützen-Datenbank'!$B$3:$C$1679,2,FALSE))","v":""},{"$f":"IF(B68=\"\",\"\",VLOOKUP(B68,'Schützen-Datenbank'!$B$360:$G$1828,6,FALSE))","v":""},{"$nulls":4},{"$f":"SUM(E68:H68)","v":0}]
[66,null,{"$f":"IF(B69=\"\",\"\",VLOOKUP(B69,'Schützen-Datenbank'!$B$3:$C$1679,2,FALSE))","v":""},{"$f":"IF(B69=\"\",\"\",VLOOKUP(B69,'Schützen-Datenbank'!$B$360:$G$1828,6,FALSE))","v":""},{"$nulls":4},0]
[67,null,{"$f":"IF(B70=\"\",\"\",VLOOKUP(B70,'Schützen-Datenbank'!$B$3:$C$1679,2,FALSE))","v":""},{"$f":"IF(B70=\"\",\"\",VLOOKUP(B70,'Schützen-Datenbank'!$B$360:$G$1828,6,FALSE))","v":""},{"$nulls":4},0]
[68,null,{"$f":"IF(B71=\"\",\"\",VLOOKUP(B71,'Schützen-Datenbank'!$B$3:$C$1679,2,FALSE))","v":""},{"$f":"IF(B71=\"\",\"\",VLOOKUP(B71,'Schützen-Datenbank'!$B$360:$G$1828,6,FALSE))","v":""},{"$nulls":4},0]
[69,null,{"$f":"IF(B72=\"\",\"\",VLOOKUP(B72,'Schützen-Datenbank'!$B$3:$C$1679,2,FALSE))","v":""},{"$f":"IF(B72=\"\",\"\",VLOOKUP(B72,'Schützen-Datenbank'!$B$360:$G$1828,6,FALSE))","v":""},{"$nulls":4},0]
[70,null,{"$f":"IF(B73=\"\",\"\",VLOOKUP(B73,'Schützen-Datenbank'!$B$3:$C$1679,2,FALSE))","v":""},{"$f":"IF(B73=\"\",\"\",VLOOKUP(B73,'Schützen-Datenbank'!$B$360:$G$1828,6,FALSE))","v":""},{"$nulls":4},0]
[71,null,{"$f":"IF(B74=\"\",\"\",VLOOKUP(B74,'Schützen-Datenbank'!$B$3:$C$1679,2,FALSE))","v":""},{"$f":"IF(B74=\"\",\"\",VLOOKUP(B74,'Schützen-Datenbank'!$B$360:$G$1828,6,FALSE))","v":""},{"$nulls":4},0]
[72,null,{"$f":"IF(B75=\"\",\"\",VLOOKUP(B75,'Schützen-Datenbank'!$B$3:$C$1679,2,FALSE))","v":""},{"$f":"IF(B75=\"\",\"\",VLOOKUP(B75,'Schützen-Datenbank'!$B$360:$G$1828,6,FALSE))","v":""},{"$nulls":4},0]
[73,null,{"$f":"IF(B76=\"\",\"\",VLOOKUP(B76,'Schützen-Datenbank'!$B$3:$C$1679,2,FALSE))","v":""},{"$f":"IF(B76=\"\",\"\",VLOOKUP(B76,'Schützen-Datenbank'!$B$360:$G$1828,6,FALSE))","v":""},{"$nulls":4},0]
[74,null,{"$f":"IF(B77=\"\",\"\",VLOOKUP(B77,'Schützen-Datenbank'!$B$3:$C$1679,2,FALSE))","v":""},{"$f":"IF(B77=\"\",\"\",VLOOKUP(B77,'Schützen-Datenbank'!$B$360:$G$1828,6,FALSE))","v":""},{"$nulls":4},0]
[75,null,{"$f":"IF(B78=\"\",\"\",VLOOKUP(B78,'Schützen-Datenbank'!$B$3:$C$1679,2,FALSE))","v":""},{"$f":"IF(B78=\"\",\"\",VLOOKUP(B78,'Schützen-Datenbank'!$B$360:$G$1828,6,FALSE))","v":""},{"$nulls":4},0]
[76,null,{"$f":"IF(B79=\"\",\"\",VLOOKUP(B79,'Schützen-Datenbank'!$B$3:$C$1679,2,FALSE))","v":""},{"$f":"IF(B79=\"\",\"\",VLOOKUP(B79,'Schützen-Datenbank'!$B$360:$G$1828,6,FALSE))","v":""},{"$nulls":4},0]
[77,null,{"$f":"IF(B80=\"\",\"\",VLOOKUP(B80,'Schützen-Datenbank'!$B$3:$C$1679,2,FALSE))","v":""},{"$f":"IF(B80=\"\",\"\",VLOOKUP(B80,'Schützen-Datenbank'!$B$360:$G$1828,6,FALSE))","v":""},{"$nulls":4},0]
[78,null,{"$f":"IF(B81=\"\",\"\",VLOOKUP(B81,'Schützen-Datenbank'!$B$3:$C$1679,2,FALSE))","v":""},{"$f":"IF(B81=\"\",\"\",VLOOKUP(B81,'Schützen-Datenbank'!$B$360:$G$1828,6,FALSE))","v":""},{"$nulls":4},0]
[79,null,{"$f":"IF(B82=\"\",\"\",VLOOKUP(B82,'Schützen-Datenbank'!$B$3:$C$1679,2,FALSE))","v":""},{"$f":"IF(B82=\"\",\"\",VLOOKUP(B82,'Schützen-Datenbank'!$B$360:$G$1828,6,FALSE))","v":""},{"$nulls":4},0]
[80,null,{"$f":"IF(B83=\"\",\"\",VLOOKUP(B83,'Schützen-Datenbank'!$B$3:$C$1679,2,FALSE))","v":""},{"$f":"IF(B83=\"\",\"\",VLOOKUP(B83,'Schützen-Datenbank'!$B$360:$G$1828,6,FALSE))","v":""},{"$nulls":4},0]
[81,null,{"$f":"IF(B84=\"\",\"\",VLOOKUP(B84,'Schützen-Datenbank'!$B$3:$C$1679,2,FALSE))","v":""},{"$f":"IF(B84=\"\",\"\",VLOOKUP(B84,'Schützen-Datenbank'!$B$360:$G$1828,6,FALSE))","v":""},{"$nulls":4},0]
[82,null,{"$f":"IF(B85=\"\",\"\",VLOOKUP(B85,'Schützen-Datenbank'!$B$3:$C$1679,2,FALSE))","v":""},{"$f":"IF(B85=\"\",\"\",VLOOKUP(B85,'Schützen-Datenbank'!$B$360:$G$1828,6,FALSE))","v":""},{"$nulls":4},0]
[83,null,{"$f":"IF(B86=\"\",\"\",VLOOKUP(B86,'Schützen-Datenbank'!$B$3:$C$1679,2,FALSE))","v":""},{"$f":"IF(B86=\"\",\"\",VLOOKUP(B86,'Schützen-Datenbank'!$B$360:$G$1828,6,FALSE))","v":""},{"$nulls":4},0]
[84,null,{"$f":"IF(B87=\"\",\"\",VLOOKUP(B87,'Schützen-Datenbank'!$B$3:$C$1679,2,FALSE))","v":""},{"$f":"IF(B87=\"\",\"\",VLOOKUP(B87,'Schützen-Datenbank'!$B$360:$G$1828,6,FALSE))","v":""},{"$nulls":4},0]
[85,null,{"$f":"IF(B88=\"\",\"\",VLOOKUP(B88,'Schützen-Datenbank'!$B$3:$C$1679,2,FALSE))","v":""},{"$f":"IF(B88=\"\",\"\",VLOOKUP(B88,'Schützen-Datenbank'!$B$360:$G$1828,6,FALSE))","v":""},{"$nulls":4},0]
[86,null,{"$f":"IF(B89=\"\",\"\",VLOOKUP(B89,'Schützen-Datenbank'!$B$3:$C$1679,2,FALSE))","v":""},{"$f":"IF(B89=\"\",\"\",VLOOKUP(B89,'Schützen-Datenbank'!$B$360:$G$1828,6,FALSE))","v":""},{"$nulls":4},0]
[87,null,{"$f":"IF(B90=\"\",\"\",VLOOKUP(B90,'Schützen-Datenbank'!$B$3:$C$1679,2,FALSE))","v":""},{"$f":"IF(B90=\"\",\"\",VLOOKUP(B90,'Schützen-Datenbank'!$B$360:$G$1828,6,FALSE))","v":""},{"$nulls":4},0]
[88,null,{"$f":"IF(B91=\"\",\"\",VLOOKUP(B91,'Schützen-Datenbank'!$B$3:$C$1679,2,FALSE))","v":""},{"$f":"IF(B91=\"\",\"\",VLOOKUP(B91,'Schützen-Datenbank'!$B$360:$G$1828,6,FALSE))","v":""},{"$nulls":4},0]
[89,null,{"$f":"IF(B92=\"\",\"\",VLOOKUP(B92,'Schützen-Datenbank'!$B$3:$C$1679,2,FALSE))","v":""},{"$f":"IF(B92=\"\",\"\",VLOOKUP(B92,'Schützen-Datenbank'!$B$360:$G$1828,6,FALSE))","v":""},{"$nulls":4},0]
[90,null,{"$f":"IF(B93=\"\",\"\",VLOOKUP(B93,'Schützen-Datenbank'!$B$3:$C$1679,2,FALSE))","v":""},{"$f":"IF(B93=\"\",\"\",VLOOKUP(B93,'Schützen-Datenbank'!$B$360:$G$1828,6,FALSE))","v":""},{"$nulls":4},0]
[91,null,{"$f":"IF(B94=\"\",\"\",VLOOKUP(B94,'Schützen-Datenbank'!$B$3:$C$1679,2,FALSE))","v":""},{"$f":"IF(B94=\"\",\"\",VLOOKUP(B94,'Schützen-Datenbank'!$B$360:$G$1828,6,FALSE))","v":""},{"$nulls":4},0]
[92,null,{"$f":"IF(B95=\"\",\"\",VLOOKUP(B95,'Schützen-Datenbank'!$B$3:$C$1679,2,FALSE))","v":""},{"$f":"IF(B95=\"\",\"\",VLOOKUP(B95,'Schützen-Datenbank'!$B$360:$G$1828,6,FALSE))","v":""},{"$nulls":4},0]
[93,null,{"$f":"IF(B96=\"\",\"\",VLOOKUP(B96,'Schützen-Datenbank'!$B$3:$C$1679,2,FALSE))","v":""},{"$f":"IF(B96=\"\",\"\",VLOOKUP(B96,'Schützen-Datenbank'!$B$360:$G$1828,6,FALSE))","v":""},{"$nulls":4},0]
[94,null,{"$f":"IF(B97=\"\",\"\",VLOOKUP(B97,'Schützen-Datenbank'!$B$3:$C$1679,2,FALSE))","v":""},{"$f":"IF(B97=\"\",\"\",VLOOKUP(B97,'Schützen-Datenbank'!$B$360:$G$1828,6,FALSE))","v":""},{"$nulls":4},0]
[95,null,{"$f":"IF(B98=\"\",\"\",VLOOKUP(B98,'Schützen-Datenbank'!$B$3:$C$1679,2,FALSE))","v":""},{"$f":"IF(B98=\"\",\"\",VLOOKUP(B98,'Schützen-Datenbank'!$B$360:$G$1828,6,FALSE))","v":""},{"$nulls":4},{"$f":"SUM(E98:H98)","v":0}]

{"sheet":"Schützen-Datenbank","index":3,"n_rows":359,"n_cols":7,"rows_kept":359}
[{"$f":"COLUMN()","v":1},{"$f":"COLUMN()","v":2},{"$f":"COLUMN()","v":3},{"$f":"COLUMN()","v":4},{"$f":"COLUMN()","v":5},{"$f":"COLUMN()","v":6},{"$f":"COLUMN()","v":7}]
[null,"Lizenz","Schützen","Name","Vorname","JG","Verein"]
[null,30788,{"$f":"CONCATENATE(D3,\" \",E3,\" \",F3,)","v":"Aebischer Mario 1988"},"Aebischer","Mario",1988,"Teufen Standschützen"]
[null,10223,{"$f":"CONCATENATE(D4,\" \",E4,\" \",F4,)","v":"Alder Johann 2006"},"Alder","Johann",2006,"Herisau Schützengesellschaft Säge"]
[null,177601,"Allenspach Michael 1981","Allenspach","Michael",1981,"Heiden Feldschützen"]
[null,825081,"Allenspach Fabian 2000","Allenspach","Fabian",2000,"Herisau Schützengesellschaft Säge"]
[null,183736,"Ammann Hubert 1962","Ammann","Hubert",1962,"Waldstatt Schützengesellschaft"]
[null,26262,"Angulo Jaron 2009","Angulo","Jaron",2009,"Herisau Schützenverein"]
[null,10754,"Aydemir Sarp 2007","Aydemir","Sarp",2007,"Teufen Standschützen"]
[null,105540,"Bänziger René 1961","Bänziger","René",1961,"Herisau Schützenverein"]
[null,100163,"Bänziger Ulrich 1958","Bänziger","Ulrich",1958,"Bühler Feldschützengesellschaft"]
[null,285653,"Bänziger Lorenz 1991","Bänziger","Lorenz",1991,"Bühler Feldschützengesellschaft"]
[null,309496,"Bänziger Nadine 1990","Bänziger","Nadine",1990,"Herisau Schützenverein"]
[null,332163,"Bänziger Sandra 1992","Bänziger","Sandra",1992,"Herisau Schützenverein"]
[null,105550,"Bichsel Kurt 1949","Bichsel","Kurt",1949,"Herisau Schützenverein"]
[null,22382,"Bischofberger Till 2011","Bischofberger","Till",2011,"Heiden Feldschützen"]
[null,206778,"Bischoff Bruno 1944","Bischoff","Bruno",1944,"Heiden Feldschützen"]
[null,139335,"Bleiker Sandro 1988","Bleiker","Sandro",1988,"Herisau Schützengesellschaft Säge"]
[null,102929,"Bleiker Ruedi 1959","Bleiker","Ruedi",1959,"Waldstatt Schützengesellschaft"]
[null,236085,"Bleiker Röbi 1984","Bleiker","Röbi",1984,"Herisau Schützengesellschaft Säge"]
[null,255010,"Bodenmann Heinz 1988","Bodenmann","Heinz",1988,"Gais Sportschützen"]
[null,286943,"Bollinger Jürg 1983","Bollinger","Jürg",1983,"Wald AR Feldschützen"]
[null,113266,"Boog Leonz 1941","Boog","Leonz",1941,"Appenzell-Ausserrhodischer Kantonalschützenverein"]
[null,819779,"Bösch Aileen 2003","Bösch","Aileen",2003,"Gais Sportschützen"]
[null,100203,"Bösch Werner 1955","Bösch","Werner",1955,"Waldstatt Schützengesellschaft"]
[null,948057,"Bösch Joana 2006","Bösch","Joana",2006,"Gais Sportschützen"]
[null,686289,"Bösch Marco 2001","Bösch","Marco",2001,"Schwellbrunn Feldschützen"]
[null,34975,"Brändli Josia 1997","Brändli","Josia",1997,"Rehetobel Schützengesellschaft"]
[null,785737,"Breitenmoser Stefan 1996","Breitenmoser","Stefan",1996,"Gais Sportschützen"]
[null,14427,"Breu Raphael 1982","Breu","Raphael",1982,"Reute Feldschützen"]
[null,860904,"Bruderer Heinz 1966","Bruderer","Heinz",1966,"Rehetobel Schützengesellschaft"]
[null,809131,"Bücheli Samuel 2003","Bücheli","Samuel",2003,"Gais Sportschützen"]
[null,105564,"Büchi Rudolf 1944","Büchi","Rudolf",1944,"Herisau Schützenverein"]
[null,551958,"Buck Florian 1998","Buck","Florian",1998,"Teufen Standschützen"]
[null,121793,"Bürkler Paul 1964","Bürkler","Paul",1964,"Teufen Standschützen"]
[null,212663,"Bürkler Rolf sen. 1942","Bürkler","Rolf sen.",1942,"Reute Feldschützen"]
[null,22909,"Buschauer Peter 1970","Buschauer","Peter",1970,"Herisau Schützenverein"]
[null,321816,"Camenzind Franz 1971","Camenzind","Franz",1971,"Schönengrund-Wald Schützengesellschaft"]
[null,316885,"Condrau Norbert 1965","Condrau","Norbert",1965,"Teufen Standschützen"]
[null,953904,"Coronel Thomas 1976","Coronel","Thomas",1976,"Urnäsch Pistolensektion"]
[null,30150,"Dähler Vreni 1985","Dähler","Vreni",1985,"Gais Sportschützen"]
[null,104838,"Di Bartolomeo Gionas 2001","Di Bartolomeo","Gionas",2001,"Gais Sportschützen"]
[null,207886,"Diem Karl 1955","Diem","Karl",1955,"Schönengrund-Wald Schützengesellschaft"]
[null,200666,"Diem Rudolf 1962","Diem","Rudolf",1962,"Schwellbrunn Feldschützen"]
[null,105570,"Diem Peter 1946","Diem","Peter",1946,"Herisau Schützenverein"]
[null,674068,"Dörig Andreas 1994","Dörig","Andreas",1994,"Herisau Schützengesellschaft Säge"]
[null,282828,"Duff John 1956","Duff","John",1956,"Schönengrund-Wald Pistolenschützen"]
[null,105574,"Düsel Christian 1974","Düsel","Christian",1974,"Herisau Schützenverein"]
[null,300124,"Dutler Marina 1992","Dutler","Marina",1992,"Schwellbrunn Feldschützen"]
[null,185263,"Dütschler Marc 1986","Dütschler","Marc",1986,"Waldstatt Schützengesellschaft"]
[null,100273,"Dütschler Hans 1954","Dütschler","Hans",1954,"Waldstatt Schützengesellschaft"]
[null,6623,"Edelmann Stephan 1962","Edelmann","Stephan",1962,"Urnäsch Schützengesellschaft"]
[null,112851,"Enz Samuel 1986","Enz","Samuel",1986,"Gais Sportschützen"]
[null,112323,"Eugster Franz 1952","Eugster","Franz",1952,"Heiden Feldschützen"]
[null,27988,"Eugster Marina 2007","Eugster","Marina",2007,"Reute Feldschützen"]
[null,514392,"Eugster Stefan 1997","Eugster","Stefan",1997,"Teufen Standschützen"]
[null,788366,"Eugster Mike 2001","Eugster","Mike",2001,"Reute Feldschützen"]
[null,206012,"Eugster Ernst 1958","Eugster","Ernst",1958,"Schönengrund-Wald Schützengesellschaft"]
[null,329123,"Eugster Thomas 1996","Eugster","Thomas",1996,"Stein AR Schützenverein Stein-Hundwil"]
[null,212677,"Eugster Hanspeter 1950","Eugster","Hanspeter",1950,"Appenzell-Ausserrhodischer Kantonalschützenverein"]
[null,103123,"Fitze Roger 1964","Fitze","Roger",1964,"Teufen Standschützen"]
[null,549232,"Fitzi Alex 1998","Fitzi","Alex",1998,"Gais Sportschützen"]
[null,327657,"Fitzi Reto 1990","Fitzi","Reto",1990,"Schönengrund-Wald Schützengesellschaft"]
[null,30789,"Forrer Sarah 1997","Forrer","Sarah",1997,"Teufen Standschützen"]
[null,6770,"Förtner Silas 2000","Förtner","Silas",2000,"Teufen Pistolen Sportschützenverein"]
[null,148235,"Frehner Walter 1971","Frehner","Walter",1971,"Bühler Feldschützengesellschaft"]
[null,200681,"Frehner Hans 1969","Frehner","Hans",1969,"Schwellbrunn Feldschützen"]
[null,156006,{"$f":"CONCATENATE(D68,\" \",E68,\" \",F68,)","v":"Frehner Werner 1945"},"Frehner","Werner",1945,"Rehetobel Schützengesellschaft"]
[null,227572,"Frehner Christian 1961","Frehner","Christian",1961,"Urnäsch Schützengesellschaft"]
[null,207857,"Frei Hansruedi 1952","Frei","Hansruedi",1952,"Schönengrund-Wald Schützengesellschaft"]
[null,156023,"Freuler Kaspar 1940","Freuler","Kaspar",1940,"Rehetobel Schützengesellschaft"]
[null,982179,"Frischknecht Adrian 2004","Frischknecht","Adrian",2004,"Urnäsch Schützengesellschaft"]
[null,876922,"Frischknecht Fabian 2001","Frischknecht","Fabian",2001,"Schwellbrunn Feldschützen"]
[null,187343,"Frischknecht Hanskoni 1974","Frischknecht","Hanskoni",1974,"Urnäsch Schützengesellschaft"]
[null,183846,"Frischknecht Emil 1954","Frischknecht","Emil",1954,"Waldstatt Schützengesellschaft"]
[null,3552,"Fuchs Diemo 2004","Fuchs","Diemo",2004,"Gais Sportschützen"]
[null,10232,"Gansner Christian 2008","Gansner","Christian",2008,"Herisau Schützengesellschaft Säge"]
[null,832796,"Gantenbein Manuel 2005","Gantenbein","Manuel",2005,"Reute Feldschützen"]
[null,207884,"Gantenbein Hans 1947","Gantenbein","Hans",1947,"Schönengrund-Wald Schützengesellschaft"]
[null,152785,"Gantenbein Ulrich 1951","Gantenbein","Ulrich",1951,"Teufen Standschützen"]
[null,102792,"Giezendanner Marcel 1975","Giezendanner","Marcel",1975,"Wald AR Feldschützen"]
[null,532641,"Gigon Alain Robert 1965","Gigon","Alain Robert",1965,"Rehetobel Schützengesellschaft"]
[null,28343,"Gisler Lukas 2013","Gisler","Lukas",2013,"Herisau Schützengesellschaft Säge"]
[null,210813,"Gisler Willi 1985","Gisler","Willi",1985,"Herisau Schützengesellschaft Säge"]
[null,102794,"Gloor Dunja 1977","Gloor","Dunja",1977,"Wald AR Feldschützen"]
[null,746335,"Graf Luca 2001","Graf","Luca",2001,"Heiden Feldschützen"]
[null,936628,"Graf Martin 2008","Graf","Martin",2008,"Heiden Feldschützen"]
[null,214060,"Graf Andreas 1973","Graf","Andreas",1973,"Heiden Feldschützen"]
[null,30785,"Graf Monique 1988","Graf","Monique",1988,"Gais Sportschützen"]
[null,225962,"Graf Hansruedi 1967","Graf","Hansruedi",1967,"Heiden Feldschützen"]
[null,225958,"Graf Bernhard 1974","Graf","Bernhard",1974,"Heiden Feldschützen"]
[null,226405,"Graf Martin 1986","Graf","Martin",1986,"Heiden Feldschützen"]
[null,11167,"Graf Jasmin 2010","Graf","Jasmin",2010,"Heiden Feldschützen"]
[null,975507,"Graf Nicole 1969","Graf","Nicole",1969,"Schönengrund-Wald Schützengesellschaft"]
[null,214726,"Graf Andreas 1984","Graf","Andreas",1984,"Teufen Standschützen"]
[null,545425,"Gründler Samuel 1996","Gründler","Samuel",1996,"Wald AR Feldschützen"]
[null,326686,"Gugger Thomas 1961","Gugger","Thomas",1961,"Gais Sportschützen"]
[null,827156,"Gut Samuel 1998","Gut","Samuel",1998,"Teufen Standschützen"]
[null,906902,"Gut Simon 2002","Gut","Simon",2002,"Teufen Standschützen"]
[null,970828,"Hartmann Falk 1966","Hartmann","Falk",1966,"Reute Feldschützen"]
[null,152795,"Hasler Georg 1956","Hasler","Georg",1956,"Rehetobel Schützengesellschaft"]
[null,515702,"Hauser-Bleiker Sabrina 1992","Hauser-Bleiker","Sabrina",1992,"Herisau Schützengesellschaft Säge"]
[null,255553,"Hautle Bruno 1951","Hautle","Bruno",1951,"Reute Feldschützen"]
[null,310723,"Heierli Andreas 1979","Heierli","Andreas",1979,"Wald AR Feldschützen"]
[null,12318,"Heierli Leonie 2010","Heierli","Leonie",2010,"Reute Feldschützen"]
[null,2287,"Heierli Jonas 2008","Heierli","Jonas",2008,"Reute Feldschützen"]
[null,148238,"Heim Remo 1974","Heim","Remo",1974,"Bühler Feldschützengesellschaft"]
[null,31104,"Heim Denis 2003","Heim","Denis",2003,"Herisau Schützenverein"]
[null,909660,"Heinze Peter 1969","Heinze","Peter",1969,"Schönengrund-Wald Pistolenschützen"]
[null,105737,"Hersche Hansruedi 1973","Hersche","Hansruedi",1973,"Herisau Schützenverein"]
[null,702279,"Heyer Maurus 1997","Heyer","Maurus",1997,"Wald AR Feldschützen"]
[null,1587,"Hofer Marco 2005","Hofer","Marco",2005,"Schwellbrunn Feldschützen"]
[null,112857,"Höhener Werner 1956","Höhener","Werner",1956,"Gais Sportschützen"]
[null,2290,"Hohl Levi 2009","Hohl","Levi",2009,"Reute Feldschützen"]
[null,10854,"Hohl Allen 2009","Hohl","Allen",2009,"Teufen Standschützen"]
[null,36070,"Holdener Manfred 1973","Holdener","Manfred",1973,"Waldstatt Schützengesellschaft"]
[null,113004,"Holderegger Jakob 1946","Holderegger","Jakob",1946,"Waldstatt Schützengesellschaft"]
[null,212688,"Holderegger Manfred 1965","Holderegger","Manfred",1965,"Reute Feldschützen"]
[null,27992,"Holenstein Luis 2013","Holenstein","Luis",2013,"Reute Feldschützen"]
[null,125967,"Hottinger Daniel 1963","Hottinger","Daniel",1963,"Heiden Feldschützen"]
[null,647603,"Hottinger Pascal 1996","Hottinger","Pascal",1996,"Heiden Feldschützen"]
[null,152796,"Hubmann Kurt 1954","Hubmann","Kurt",1954,"Rehetobel Schützengesellschaft"]
[null,183868,"Hug Michael 1981","Hug","Michael",1981,"Waldstatt Schützengesellschaft"]
[null,22672,"Hunter Benjamin 1974","Hunter","Benjamin",1974,"Herisau Schützenverein"]
[null,112331,"Isler Thomas 1971","Isler","Thomas",1971,"Heiden Feldschützen"]
[null,839894,"Isler Matthias 2005","Isler","Matthias",2005,"Heiden Feldschützen"]
[null,875778,"Isler Natalia 2007","Isler","Natalia",2007,"Heiden Feldschützen"]
[null,10233,"Iten Fabian 2008","Iten","Fabian",2008,"Herisau Schützengesellschaft Säge"]
[null,326933,"Jäggi Fabian 1992","Jäggi","Fabian",1992,"Rehetobel Schützengesellschaft"]
[null,18545,"Januzi Bekim 1982","Januzi","Bekim",1982,"Schönengrund-Wald Schützengesellschaft"]
[null,148239,"Jeger Ruedi 1937","Jeger","Ruedi",1937,"Bühler Feldschützengesellschaft"]
[null,906904,{"$f":"CONCATENATE(D132,\" \",E132,\" \",F132,)","v":"Kaiser Jennifer 2000"},"Kaiser","Jennifer",2000,"Teufen Standschützen"]
[null,943548,"Kaiser Florian 2003","Kaiser","Florian",2003,"Teufen Standschützen"]
[null,102946,"Kälin Louis 1946","Kälin","Louis",1946,"Appenzell-Ausserrhodischer Kantonalschützenverein"]
[null,943893,"Kappeler Tristan 2009","Kappeler","Tristan",2009,"Heiden Feldschützen"]
[null,13966,"Kappeler Reinhard 1965","Kappeler","Reinhard",1965,"Heiden Feldschützen"]
[null,148240,"Katschnig Alois 1963","Katschnig","Alois",1963,"Bühler Feldschützengesellschaft"]
[null,736540,"Katschnig Tamara 2002","Katschnig","Tamara",2002,"Gais Sportschützen"]
[null,19428,"Kellenberger Fabio 2012","Kellenberger","Fabio",2012,"Heiden Feldschützen"]
[null,104130,"Kellenberger Priska 1960","Kellenberger","Priska",1960,"Rehetobel Schützengesellschaft"]
[null,156017,"Kellenberger Markus 1962","Kellenberger","Markus",1962,"Rehetobel Schützengesellschaft"]
[null,105746,"Keller Matthias 1957","Keller","Matthias",1957,"Herisau Schützenverein"]
[null,10234,"Keller David 2008","Keller","David",2008,"Herisau Schützengesellschaft Säge"]
[null,102131,"Kessler Hanspeter 1945","Kessler","Hanspeter",1945,"Herisau Schützengesellschaft Säge"]
[null,977911,"Kessler Florian 2005","Kessler","Florian",2005,"Herisau Schützengesellschaft Säge"]
[null,941477,"Kessler Benjamin 2005","Kessler","Benjamin",2005,"Herisau Schützengesellschaft Säge"]
[null,4503,"Kessler Stephanie 1993","Kessler","Stephanie",1993,"Herisau Schützenverein"]
[null,549590,"Kessler Alex 1995","Kessler","Alex",1995,"Herisau Schützenverein"]
[null,270858,"Kloukas Wasilios 1983","Kloukas","Wasilios",1983,"Herisau Schützengesellschaft Säge"]
[null,103155,"Knöfler Stefan 1980","Knöfler","Stefan",1980,"Teufen Standschützen"]
[null,998213,"Knöfler Mateo 2010","Knöfler","Mateo",2010,"Teufen Standschützen"]
[null,212711,"Knöfler Markus 1975","Knöfler","Markus",1975,"Reute Feldschützen"]
[null,103151,"Knöfler Fredy 1950","Knöfler","Fredy",1950,"Teufen Pistolen Sportschützenverein"]
[null,279523,"Knöpfel Jakob 1989","Knöpfel","Jakob",1989,"Stein AR Schützenverein Stein-Hundwil"]
[null,208617,"Knöpfel Heinrich 1963","Knöpfel","Heinrich",1963,"Schönengrund-Wald Schützengesellschaft"]
[null,208334,"Knöpfel Robert 1957","Knöpfel","Robert",1957,"Schönengrund-Wald Schützengesellschaft"]
[null,10236,"Knupp Andreas 2008","Knupp","Andreas",2008,"Herisau Schützengesellschaft Säge"]
[null,10238,"Knupp Tobias 2008","Knupp","Tobias",2008,"Herisau Schützengesellschaft Säge"]
[null,226301,"Kobler Mark 1985","Kobler","Mark",1985,"Heiden Feldschützen"]
[null,225411,"Kobler Silvano Franz 1960","Kobler","Silvano Franz",1960,"Heiden Feldschützen"]
[null,226400,"Kobler Stefan 1983","Kobler","Stefan",1983,"Heiden Feldschützen"]
[null,36331,"Kolb Peter 1967","Kolb","Peter",1967,"Urnäsch Schützengesellschaft"]
[null,100204,"Koller Andreas 1954","Koller","Andreas",1954,"Appenzell-Ausserrhodischer Kantonalschützenverein"]
[null,221826,"Koller Remo 1988","Koller","Remo",1988,"Waldstatt Schützengesellschaft"]
[null,117512,"Krüsi Markus 1980","Krüsi","Markus",1980,"Waldstatt Schützengesellschaft"]
[null,463809,"Kuchler Jennifer 1993","Kuchler","Jennifer",1993,"Herisau Schützenverein"]
[null,30784,"Küchler Johann 2008","Küchler","Johann",2008,"Herisau Schützenverein"]
[null,225412,"Künzler Hans 1959","Künzler","Hans",1959,"Heiden Feldschützen"]
[null,784675,"Künzler Simona 2003","Künzler","Simona",2003,"Heiden Feldschützen"]
[null,833643,"Labiano Demetrio 1974","Labiano","Demetrio",1974,"Schönengrund-Wald Schützengesellschaft"]
[null,486600,"Lämmler Fabian 1989","Lämmler","Fabian",1989,"Schwellbrunn Feldschützen"]
[null,397364,"Lämmler-Hauser Maja 1991","Lämmler-Hauser","Maja",1991,"Schwellbrunn Feldschützen"]
[null,19034,"Lang Angelina 2006","Lang","Angelina",2006,"Herisau Schützenverein"]
[null,812891,"Langenauer Jan 2004","Langenauer","Jan",2004,"Urnäsch Schützengesellschaft"]
[null,230323,"Langenauer Alfred 1950","Langenauer","Alfred",1950,"Gais Sportschützen"]
[null,227569,"Langenauer Urs 1971","Langenauer","Urs",1971,"Urnäsch Schützengesellschaft"]
[null,14328,"Lath Florian 1985","Lath","Florian",1985,"Reute Feldschützen"]
[null,890142,"Lehmann Gerhard 1948","Lehmann","Gerhard",1948,"Teufen Pistolen Sportschützenverein"]
[null,905668,"Locher Mike 2002","Locher","Mike",2002,"Herisau Schützengesellschaft Säge"]
[null,112579,"Looser Serge 1979","Looser","Serge",1979,"Heiden Feldschützen"]
[null,261545,"Lutz Diego 1984","Lutz","Diego",1984,"Schwellbrunn Feldschützen"]
[null,236080,"Lutz Hans 1984","Lutz","Hans",1984,"Herisau Schützengesellschaft Säge"]
[null,946662,"Lutz Thomas 2007","Lutz","Thomas",2007,"Herisau Schützengesellschaft Säge"]
[null,294300,"Lutz-Bretscher Heidi 1983","Lutz-Bretscher","Heidi",1983,"Schwellbrunn Feldschützen"]
[null,26100,"Manser Valentin 2009","Manser","Valentin",2009,"Teufen Standschützen"]
[null,905665,"Manser Marino 2003","Manser","Marino",2003,"Herisau Schützengesellschaft Säge"]
[null,827426,"Manser Urs 2003","Manser","Urs",2003,"Teufen Standschützen"]
[null,10239,"Manser Melanie 2008","Manser","Melanie",2008,"Herisau Schützengesellschaft Säge"]
[null,105752,"Marolf Walter 1944","Marolf","Walter",1944,"Herisau Schützenverein"]
[null,184061,"Marti Andreas 1977","Marti","Andreas",1977,"Waldstatt Schützengesellschaft"]
[null,184062,"Marti Werner 1952","Marti","Werner",1952,"Waldstatt Schützengesellschaft"]
[null,310067,"Mathis Maria 1988","Mathis","Maria",1988,"Urnäsch Schützengesellschaft"]
[null,12319,"Matter Norina 2010","Matter","Norina",2010,"Reute Feldschützen"]
[null,258739,"Meier Christian 1984","Meier","Christian",1984,"Reute Feldschützen"]
[null,212715,"Meier Gerda 1954","Meier","Gerda",1954,"Reute Feldschützen"]
[null,258743,{"$f":"CONCATENATE(D196,\" \",E196,\" \",F196,)","v":"Meier Werner 1983"},"Meier","Werner",1983,"Reute Feldschützen"]
[null,308094,"Meier Daniel 1987","Meier","Daniel",1987,"Reute Feldschützen"]
[null,258741,"Meier Werner 1956","Meier","Werner",1956,"Reute Feldschützen"]
[null,148241,"Meier Alfred 1943","Meier","Alfred",1943,"Bühler Feldschützengesellschaft"]
[null,222337,"Meier Jakob 1970","Meier","Jakob",1970,"Stein AR Schützenverein Stein-Hundwil"]
[null,212714,"Meier Kurt 1942","Meier","Kurt",1942,"Reute Feldschützen"]
[null,905666,"Meier Astrid 2002","Meier","Astrid",2002,"Herisau Schützengesellschaft Säge"]
[null,148242,"Meier Christoph 1974","Meier","Christoph",1974,"Bühler Feldschützengesellschaft"]
[null,31421,"Meier Miriam 1977","Meier","Miriam",1977,"Bühler Feldschützengesellschaft"]
[null,102953,"Menzi Fritz 1945","Menzi","Fritz",1945,"Herisau Schützengesellschaft Säge"]
[null,102787,"Merz Ueli 1968","Merz","Ueli",1968,"Wald AR Feldschützen"]
[null,843458,"Merz Nathanael 2002","Merz","Nathanael",2002,"Rehetobel Schützengesellschaft"]
[null,187316,"Mettler Josua 1959","Mettler","Josua",1959,"Urnäsch Schützengesellschaft"]
[null,187329,"Mettler Christian 1980","Mettler","Christian",1980,"Urnäsch Schützengesellschaft"]
[null,27295,"Michel Dennis 2010","Michel","Dennis",2010,"Herisau Schützenverein"]
[null,112856,"Mohsin-Höhener Sandra 1987","Mohsin-Höhener","Sandra",1987,"Gais Sportschützen"]
[null,891365,"Moser Urs 1970","Moser","Urs",1970,"Rehetobel Schützengesellschaft"]
[null,848161,"Moser Lukas 2002","Moser","Lukas",2002,"Rehetobel Schützengesellschaft"]
[null,225628,"Mosimann Franz 1949","Mosimann","Franz",1949,"Gais Sportschützen"]
[null,184066,"Müller Patrick 1977","Müller","Patrick",1977,"Waldstatt Schützengesellschaft"]
[null,106095,"Müller Marcel 1977","Müller","Marcel",1977,"Stein AR Schützenverein Stein-Hundwil"]
[null,327989,"Müller Lukas 1995","Müller","Lukas",1995,"Stein AR Schützenverein Stein-Hundwil"]
[null,589647,"Musche Peter 1988","Musche","Peter",1988,"Reute Feldschützen"]
[null,23327,"Musumeci Roberto 1973","Musumeci","Roberto",1973,"Reute Feldschützen"]
[null,184068,"Nägeli Walter 1947","Nägeli","Walter",1947,"Waldstatt Schützengesellschaft"]
[null,15203,"Nef Emil 1974","Nef","Emil",1974,"Urnäsch Schützengesellschaft"]
[null,148245,"Neff Bruno 1944","Neff","Bruno",1944,"Bühler Feldschützengesellschaft"]
[null,102820,"Niederer Miriam 1978","Niederer","Miriam",1978,"Teufen Standschützen"]
[null,200658,"Niederer Bruno 1942","Niederer","Bruno",1942,"Schwellbrunn Feldschützen"]
[null,549733,"Niederer Hansjörg 1962","Niederer","Hansjörg",1962,"Reute Feldschützen"]
[null,319922,"Niederer Joel 1991","Niederer","Joel",1991,"Reute Feldschützen"]
[null,830426,"Niedermann Luca 1996","Niedermann","Luca",1996,"Herisau Schützengesellschaft Säge"]
[null,13726,"Oertle Walter 1975","Oertle","Walter",1975,"Urnäsch Schützengesellschaft"]
[null,946734,"Oggier Stefan 2000","Oggier","Stefan",2000,"Reute Feldschützen"]
[null,515824,"Paganini Noah 1996","Paganini","Noah",1996,"Rehetobel Schützengesellschaft"]
[null,923831,"Peter René 1999","Peter","René",1999,"Reute Feldschützen"]
[null,310785,"Pfister Benno 1960","Pfister","Benno",1960,"Gais Sportschützen"]
[null,306711,"Pfister Cornel 1990","Pfister","Cornel",1990,"Gais Sportschützen"]
[null,306710,"Pfister Adrian 1991","Pfister","Adrian",1991,"Gais Sportschützen"]
[null,770649,"Pike-Weiersmüller Keith 1946","Pike-Weiersmüller","Keith",1946,"Schönengrund-Wald Schützengesellschaft"]
[null,1098,"Pioda Taiko 2006","Pioda","Taiko",2006,"Teufen Standschützen"]
[null,16575,"Preisig Patrick 1975","Preisig","Patrick",1975,"Schönengrund-Wald Schützengesellschaft"]
[null,200657,"Preisig Anton 1970","Preisig","Anton",1970,"Schwellbrunn Feldschützen"]
[null,514391,"Preisig Silvan 1998","Preisig","Silvan",1998,"Teufen Standschützen"]
[null,102822,"Preisig Bruno 1957","Preisig","Bruno",1957,"Appenzell-Ausserrhodischer Kantonalschützenverein"]
[null,200825,"Preisig Karin 1984","Preisig","Karin",1984,"Schwellbrunn Feldschützen"]
[null,102824,"Preisig Ueli 1964","Preisig","Ueli",1964,"Teufen Standschützen"]
[null,201581,"Preisig Roman 1982","Preisig","Roman",1982,"Schwellbrunn Feldschützen"]
[null,212718,"Preisig Christian 1981","Preisig","Christian",1981,"Reute Feldschützen"]
[null,226303,"Probst Richard 1985","Probst","Richard",1985,"Heiden Feldschützen"]
[null,200655,"Ramsauer Ernst 1968","Ramsauer","Ernst",1968,"Schwellbrunn Feldschützen"]
[null,194033,"Raschle Christoph 1963","Raschle","Christoph",1963,"Urnäsch Schützengesellschaft"]
[null,819781,"Raschle Stefan 2003","Raschle","Stefan",2003,"Schwellbrunn Feldschützen"]
[null,200644,"Raschle Peter 1969","Raschle","Peter",1969,"Schwellbrunn Feldschützen"]
[null,2794,"Raschle Cyrill 2008","Raschle","Cyrill",2008,"Schwellbrunn Feldschützen"]
[null,919765,"Raschle Marcel 2005","Raschle","Marcel",2005,"Schwellbrunn Feldschützen"]
[null,110218,"Rebsamen Beat 1961","Rebsamen","Beat",1961,"Urnäsch Schützengesellschaft"]
[null,102828,"Rechsteiner Walter 1954","Rechsteiner","Walter",1954,"Teufen Pistolen Sportschützenverein"]
[null,200627,"Reutegger Hansueli 1966","Reutegger","Hansueli",1966,"Schwellbrunn Feldschützen"]
[null,514514,"Reutegger Sandro 1996","Reutegger","Sandro",1996,"Schwellbrunn Feldschützen"]
[null,726069,"Reutegger Stefanie 1999","Reutegger","Stefanie",1999,"Schwellbrunn Feldschützen"]
[null,937045,"Rieger Uwe 1962","Rieger","Uwe",1962,"Reute Feldschützen"]
[null,184073,"Ritter Wendelin 1948","Ritter","Wendelin",1948,"Waldstatt Schützengesellschaft"]
[null,222883,"Rohner Walter 1943","Rohner","Walter",1943,"Herisau Schützengesellschaft Säge"]
[null,106801,{"$f":"CONCATENATE(D260,\" \",E260,\" \",F260,)","v":"Rohner Jakob 1953"},"Rohner","Jakob",1953,"Herisau Schützenverein"]
[null,188439,"Roth Ulrich 1978","Roth","Ulrich",1978,"Schwellbrunn Feldschützen"]
[null,986591,"Rüegg Pascal 2009","Rüegg","Pascal",2009,"Teufen Standschützen"]
[null,36959,"Ruppanner Philipp 2000","Ruppanner","Philipp",2000,"Reute Feldschützen"]
[null,103016,"Rusch Heinz 1966","Rusch","Heinz",1966,"Herisau, Pistolenschützen Herisau-Waldstatt"]
[null,200646,"Rutz Thomas 1979","Rutz","Thomas",1979,"Schwellbrunn Feldschützen"]
[null,21627,"Saupe Wim 2010","Saupe","Wim",2010,"Teufen Standschützen"]
[null,310720,"Scherrer Marina 1991","Scherrer","Marina",1991,"Wald AR Feldschützen"]
[null,35056,"Scheuzger Tobias 1991","Scheuzger","Tobias",1991,"Teufen Standschützen"]
[null,512907,"Schläpfer Dominik 1995","Schläpfer","Dominik",1995,"Gais Sportschützen"]
[null,112582,"Schläpfer Werner 1945","Schläpfer","Werner",1945,"Reute Feldschützen"]
[null,21722,"Schläpfer Fynn 2012","Schläpfer","Fynn",2012,"Heiden Feldschützen"]
[null,295786,"Schläpfer Barbara 1993","Schläpfer","Barbara",1993,"Gais Sportschützen"]
[null,397365,"Schläpfer Andreas 1992","Schläpfer","Andreas",1992,"Schwellbrunn Feldschützen"]
[null,283150,"Schläpfer Alfred 1985","Schläpfer","Alfred",1985,"Schwellbrunn Feldschützen"]
[null,522301,"Schmid Jörg 1965","Schmid","Jörg",1965,"Urnäsch Schützengesellschaft"]
[null,102786,"Schmid Raymond 1966","Schmid","Raymond",1966,"Wald AR Feldschützen"]
[null,825101,"Schmid Samuel 1999","Schmid","Samuel",1999,"Herisau Schützengesellschaft Säge"]
[null,148248,"Schneider Bruno 1953","Schneider","Bruno",1953,"Bühler Feldschützengesellschaft"]
[null,104789,"Schneider Ueli 1985","Schneider","Ueli",1985,"Teufen Standschützen"]
[null,108105,"Schöb Werner 1960","Schöb","Werner",1960,"Herisau Schützenverein"]
[null,20832,"Schoch Sara 2008","Schoch","Sara",2008,"Schwellbrunn Feldschützen"]
[null,275931,"Schweizer Jakob 1973","Schweizer","Jakob",1973,"Bühler Feldschützengesellschaft"]
[null,751492,"Schweizer Patrick 2002","Schweizer","Patrick",2002,"Gais Sportschützen"]
[null,829070,"Schweizer Alex 1999","Schweizer","Alex",1999,"Gais Sportschützen"]
[null,830017,"Schwizer Michael 2000","Schwizer","Michael",2000,"Schwellbrunn Feldschützen"]
[null,917832,"Segala Remo 1970","Segala","Remo",1970,"Teufen Pistolen Sportschützenverein"]
[null,27991,"Seitz Jessica 2004","Seitz","Jessica",2004,"Reute Feldschützen"]
[null,909525,"Seng Martin 1963","Seng","Martin",1963,"Reute Feldschützen"]
[null,10759,"Senn Alessija 2007","Senn","Alessija",2007,"Teufen Standschützen"]
[null,784149,"Sennhauser Lars 2001","Sennhauser","Lars",2001,"Rehetobel Schützengesellschaft"]
[null,10756,"Sick Leon 2007","Sick","Leon",2007,"Teufen Standschützen"]
[null,807204,"Sieber Dominic 1997","Sieber","Dominic",1997,"Gais Sportschützen"]
[null,222888,"Siegrist Heinz 1949","Siegrist","Heinz",1949,"Herisau Schützengesellschaft Säge"]
[null,295873,"Signer Robin 1992","Signer","Robin",1992,"Herisau Schützenverein"]
[null,104795,"Soldera Giovanni 1952","Soldera","Giovanni",1952,"Wald AR Feldschützen"]
[null,362883,"Sommer Sascha 1983","Sommer","Sascha",1983,"Herisau Schützengesellschaft Säge"]
[null,784671,"Sonderegger Raphael 2000","Sonderegger","Raphael",2000,"Heiden Feldschützen"]
[null,104134,"Sonderegger Peter 1952","Sonderegger","Peter",1952,"Rehetobel Schützengesellschaft"]
[null,829381,"Sonderegger Oliver 2002","Sonderegger","Oliver",2002,"Heiden Feldschützen"]
[null,307145,"Sprenger Christian 1993","Sprenger","Christian",1993,"Gais Sportschützen"]
[null,766644,"Stalder Josia 1994","Stalder","Josia",1994,"Gais Sportschützen"]
[null,785409,"Staub Timo 2003","Staub","Timo",2003,"Teufen Standschützen"]
[null,986592,"Staub Nico 2010","Staub","Nico",2010,"Teufen Standschützen"]
[null,102830,"Staub Willi 1967","Staub","Willi",1967,"Teufen Standschützen"]
[null,11339,"Strassmann Ramon 2008","Strassmann","Ramon",2008,"Reute Feldschützen"]
[null,18061,"Streuli Ralph 1977","Streuli","Ralph",1977,"Gais Sportschützen"]
[null,18062,"Streuli David 2007","Streuli","David",2007,"Gais Sportschützen"]
[null,327987,"Stricker Tobias 1996","Stricker","Tobias",1996,"Stein AR Schützenverein Stein-Hundwil"]
[null,269731,"Stricker Hansueli 1986","Stricker","Hansueli",1986,"Herisau Schützenverein"]
[null,301865,"Stucki Benjamin 1987","Stucki","Benjamin",1987,"Teufen Standschützen"]
[null,152821,"Studerus Martin 1972","Studerus","Martin",1972,"Bühler Feldschützengesellschaft"]
[null,156068,"Sturzenegger Emil 1934","Sturzenegger","Emil",1934,"Rehetobel Schützengesellschaft"]
[null,460165,"Sturzenegger Edi 1966","Sturzenegger","Edi",1966,"Reute Feldschützen"]
[null,787897,"Sturzenegger Joël 2004","Sturzenegger","Joël",2004,"Reute Feldschützen"]
[null,148250,"Sumi Werner 1938","Sumi","Werner",1938,"Bühler Feldschützengesellschaft"]
[null,148260,"Sumi Daniel 1976","Sumi","Daniel",1976,"Bühler Feldschützengesellschaft"]
[null,976643,"Sutter Philip 2006","Sutter","Philip",2006,"Rehetobel Schützengesellschaft"]
[null,112616,"Sutter Daniel 1977","Sutter","Daniel",1977,"Urnäsch Schützengesellschaft"]
[null,187014,"Sutter Ludwig 1960","Sutter","Ludwig",1960,"Urnäsch Schützengesellschaft"]
[null,32220,"Sutter Patrick 1983","Sutter","Patrick",1983,"Urnäsch Schützengesellschaft"]
[null,20167,"Sutter Christian 1973","Sutter","Christian",1973,"Rehetobel Schützengesellschaft"]
[null,832205,"Tanner Manuel 2004","Tanner","Manuel",2004,"Waldstatt Schützengesellschaft"]
[null,184087,"Tanner Walter 1961","Tanner","Walter",1961,"Waldstatt Schützengesellschaft"]
[null,184085,{"$f":"CONCATENATE(D324,\" \",E324,\" \",F324,)","v":"Tanner Martin 1977"},"Tanner","Martin",1977,"Waldstatt Schützengesellschaft"]
[null,184084,"Tanner Mario 1979","Tanner","Mario",1979,"Waldstatt Schützengesellschaft"]
[null,225975,"Tobler Hansjörg 1967","Tobler","Hansjörg",1967,"Heiden Feldschützen"]
[null,538985,"Troxler Daniel 1992","Troxler","Daniel",1992,"Gais Sportschützen"]
[null,706239,"Vetsch Damian 1993","Vetsch","Damian",1993,"Teufen Standschützen"]
[null,102835,"Vetsch Christian 1963","Vetsch","Christian",1963,"Teufen Standschützen"]
[null,258007,"Vetter Silvan 1988","Vetter","Silvan",1988,"Teufen Standschützen"]
[null,34350,"von Allmen Karin 2005","von Allmen","Karin",2005,"Reute Feldschützen"]
[null,212733,"Walser Hanspeter 1945","Walser","Hanspeter",1945,"Reute Feldschützen"]
[null,102115,"Wehrlin Andreas 1962","Wehrlin","Andreas",1962,"Schwellbrunn Feldschützen"]
[null,224946,"Weiler Andreas 1982","Weiler","Andreas",1982,"Schwellbrunn Feldschützen"]
[null,148232,"Weishaupt Peter 1976","Weishaupt","Peter",1976,"Bühler Feldschützengesellschaft"]
[null,614763,"Weiss Christian 1958","Weiss","Christian",1958,"Bühler Feldschützengesellschaft"]
[null,253765,"Weiss Valentin 1985","Weiss","Valentin",1985,"Urnäsch Schützengesellschaft"]
[null,962051,"Werner Alea Cyara 2001","Werner","Alea Cyara",2001,"Gais Sportschützen"]
[null,942059,"Werner Mathias 1974","Werner","Mathias",1974,"Gais Sportschützen"]
[null,113162,"Wick Werner 1955","Wick","Werner",1955,"Heiden Feldschützen"]
[null,740373,"Widmer Daniel 1961","Widmer","Daniel",1961,"Schwellbrunn Feldschützen"]
[null,744447,"Widmer Lukas 1999","Widmer","Lukas",1999,"Schwellbrunn Feldschützen"]
[null,1585,"Widmer Ramon 2006","Widmer","Ramon",2006,"Schwellbrunn Feldschützen"]
[null,881286,"Wild Michael 1964","Wild","Michael",1964,"Gais Sportschützen"]
[null,316040,"Wildermuth Christian 1966","Wildermuth","Christian",1966,"Schwellbrunn Feldschützen"]
[null,526178,"Wyss Reto 1973","Wyss","Reto",1973,"Bühler Feldschützengesellschaft"]
[null,954152,"Zaller Benjamin 1982","Zaller","Benjamin",1982,"Rehetobel Schützengesellschaft"]
[null,187414,"Zaugg Loïc 1982","Zaugg","Loïc",1982,"Urnäsch Schützengesellschaft"]
[null,114029,"Zeiter Antonio 1948","Zeiter","Antonio",1948,"Heiden Feldschützen"]
[null,108147,"Zellweger Peter 1951","Zellweger","Peter",1951,"Herisau Schützenverein"]
[null,104126,"Ziegler Walter 1963","Ziegler","Walter",1963,"Heiden Feldschützen"]
[null,21043,"Zientek André 1986","Zientek","André",1986,"Reute Feldschützen"]
[null,248036,"Zürcher Ernst 1943","Zürcher","Ernst",1943,"Gais Sportschützen"]
[null,226296,"Züst Andrea 1983","Züst","Andrea",1983,"Heiden Feldschützen"]
[null,517032,"Züst Michael 1991","Züst","Michael",1991,"Reute Feldschützen"]
[null,225977,"Züst Wilfried 1956","Züst","Wilfried",1956,"Heiden Feldschützen"]
[null,209270,"Zweifel Walter 1964","Zweifel","Walter",1964,"Schönengrund-Wald Schützengesellschaft"]
[null,3240,"Zwicker Lea 2003","Zwicker","Lea",2003,"Gais Sportschützen"]
[null,26763,"Zwyer Mia 2009","Zwyer","Mia",2009,"Teufen Standschützen"]